{"text_format":"1","workbook":"xlsx","n_sheets":3,"sheets":["Hoja2","Hoja1","Hoja3"],"not_rendered":{"charts":0,"images":1,"macros":1,"external_links":0,"defined_names":0,"comments":0,"pivot_tables":0},"unopened":[],"bounds":{"document_bytes":16777216,"sheet_cells":100000,"rows_first":2000,"rows_last":500,"rows_between":2000,"halvings":0,"cell_chars":16384,"cell_head_chars":4096},"cells_cut":0,"cells_raw":0,"read":"whole","date_system":"1900"}

{"sheet":"Hoja2","index":0,"n_rows":1854,"n_cols":23,"rows_kept":1854,"cut":false,"hidden":false,"merged":[]}
[1,"¿ Qué significa la palabra francesa \" châpeau \" ?","sombrero","s","o","m","b","r","e","r","o",null,null,null,null,null,null,null,null,null,null,null,{"$f":"A1","v":1}]
[2,"¿ Cuál de los siguientes es el famoso actor de \" Matrix \" o \" Pactar con el diablo \" ?","Keane Reeves","K","e","a","n","u",null,"R","e","e","v","e","s",null,null,null,null,null,null,null,2]
[3,"¿ Qué es un fandango ?","danza","d","a","n","z","a",null,null,null,null,null,null,null,null,null,null,null,null,null,"una danza",3]
[4,"¿ Cómo se denomina al área fértil de un desierto, donde el nivel freático alcanza la superficie ?","oasis","o","a","s","i","s",null,null,null,null,null,null,null,null,null,null,null,null,null,null,4]
[5,"¿ Qué país ártico tiene el nombre finés \" Lapin Li \" ?","Laponia","L","a","p","o","n","i","a",null,null,null,null,null,null,null,null,null,null,null,null,5]
[6,"¿ Quién es el famosos detective de la serie de películas \" La pantera rosa \" ?","inspector Clouseau","i","n","s","p","e","c","t","o","r",null,"C","l","o","u","s","e","a","u","El inspector Clouseau",6]
[7,"¿ Qué país limita únicamente con España ?","Portugal","P","o","r","t","u","g","a","l",null,null,null,null,null,null,null,null,null,null,null,7]
[8,"¿ Qué vía ferroviaria unió Moscú e Irkutsk en 1.900 ?","el transiberiano","t","r","a","n","s","i","b","e","r","i","a","n","o",null,null,null,null,null,"transiberiano",8]
[9,"¿  Quién escribió \" La interpretación de los sueños \" ?","Freud","F","r","e","u","d",null,null,null,null,null,null,null,null,null,null,null,null,null,null,9]
[10,"¿ Quien es el actor principal de \" El último tango en París\" ?","Marlon Brando","M","a","r","l","o","n",null,"B","r","a","n","d","o",null,null,null,null,null,null,10]
[11,"¿  Qué continente tiene menos plantas florales ?","Antartida","A","t","a","r","t","i","d","a",null,null,null,null,null,null,null,null,null,null,null,11]
[12,"¿ En qué religión se dan los estigmas ?","cristianismo","c","r","i","s","t","i","a","n","i","s","m","o",null,null,null,null,null,null,null,12]
[13,"¿En qué campo artístico destacó Giovanni Bellini?","pintura","p","i","n","t","u","r","a",null,null,null,null,null,null,null,null,null,null,null,null,13]
[14,"¿De qué nacionalidad era el futbolista conocido como \"la saeta rubia\"?","Argentina","A","r","g","e","n","t","i","n","a",null,null,null,null,null,null,null,null,null,null,14]
[15,"¿Qué es el esternocleidomastoideo?","musculo","m","u","s","c","u","l","o",null,null,null,null,null,null,null,null,null,null,null,"un musculo",15]
[16,"¿Cómo se denomina el coleccionista de monedas y medallas?","numismatico","n","u","m","i","s","m","a","t","i","c","o",null,null,null,null,null,null,null,null,16]
[17,"¿  Cómo se llamaba el locutor de radio del programa de cine polvo de estrellas? TV España","Carlos Pomares","C","a","r","l","o","s",null,"P","o","m","a","r","e","s",null,null,null,null,null,17]
[18,"¿Con qué otro nombre es más conocido el dios griego Heracles?","Hercules","H","e","r","c","u","l","e","s",null,null,null,null,null,null,null,null,null,null,null,18]
[19,"¿En qué ofensiva aliada de la II Guerra Mundial se utilizó la consigna del día D y la Hora H   ? ........?.............            .....................?.......................","Normandia","N","o","r","m","a","n","d","i","a",null,null,null,null,null,null,null,null,null,"desembarco de Normandia",19]
[20,"¿Qué nombre recibe la ciencia que trata del conocimiento de las monedas y de las medallas?","numismatica","n","u","m","i","s","m","a","t","i","c","a",null,null,null,null,null,null,null,null,20]
[21,"¿Qué movimiento dirigió la llamada revolución de las \"flores\" llevada a cabo en mayo de 1968?","hippie","h","i","p","p","i","e",null,null,null,null,null,null,null,null,null,null,null,null,null,21]
[22,"¿Qué país contiene la mayor parte de los ríos Tigris y Eufrates?","Irak","I","r","a","k",null,null,null,null,null,null,null,null,null,null,null,null,null,null,null,22]
[23,"¿En qué fecha se inició la guerra de independencia americana? Dia,  Mes,  Año","19 abril 1775",1,9,null,"a","b","r","i","l",null,1,7,7,5,null,null,null,null,null,"19 de abril de 1775",23]
[24,"¿Cómo se llama el arte de criar, amaestrar y curar a los halcones y otras aves como el azor?","cetreria","c","e","t","r","e","r","i","a",null,null,null,null,null,null,null,null,null,null,null,24]
[25,"¿Qué actor era \"La mascara negra\" en la serie televisiva? TV España","Sancho Gracia","S","a","n","c","h","o",null,"G","r","a","c","i","a",null,null,null,null,null,null,25]
[26,"¿Cómo se denomina un dispositivo electrónico con dos electrodos?","diodo","d","i","o","d","o",null,null,null,null,null,null,null,null,null,null,null,null,null,null,26]
[27,"¿Qué británico dirigió La naranja mecánica en 1971?","Stanly Kubrick","S","t","a","n","l","y",null,"K","u","b","r","i","c","k",null,null,null,null,null,27]
[28,"¿Cuál es la capital de Holanda?","La Haya","H","a","y","a",null,null,null,null,null,null,null,null,null,null,null,null,null,null,"Haya",28]
[29,"Hypertext Markup Language","HTML","H","T","M","L",null,null,null,null,null,null,null,null,null,null,null,null,null,null,null,29]
[30,"world wide web","WWW","W","W","W",null,null,null,null,null,null,null,null,null,null,null,null,null,null,null,null,30]
[31,"Cual es el más importante de los sistemas operativos del mundo ?","MS DOS","M","S",null,"D","O","S",null,null,null,null,null,null,null,null,null,null,null,null,null,31]
[32,"¿En que país se descubrió el alcohol?","España","E","s","p","a","ñ","a",null,null,null,null,null,null,null,null,null,null,null,null,null,32]
[33,"Quienes fueron los finalistas del mundial de futbol del 2010","España Holanda","E","s","p","a","ñ","a",null,"H","o","l","a","n","d","a",null,null,null,null,null,33]
[34,"¿  Cual fue el invento más importante de Thomas Edison? ...........?..........    ............?.........","lampara","l","a","m","p","a","r","a",null,null,null,null,null,null,null,null,null,null,null,"la lampara ",34]
[35,"quién inventó el autogiro, lo que hoy es el helicoptero ( España )","De la Cierva","D","e",null,"l","a ",null,"C","i","e","r","v","a",null,null,null,null,null,null,"Cierva",35]
[36,"Quién inventó el automovil","Teofilo Daimler","T","e","o","f","i","l","o",null,"D","a","i","m","l","e","r",null,null,null,null,36]
[37,"quién inventó el alfabeto para ciegos","Louis Braile","L","o","u","i","s",null,"B","r","a","i","l","e",null,null,null,null,null,null,null,37]
[38,"¿A cuantos bits equivale 1 byte ?","ocho","o","c","h","o",null,null,null,null,null,null,null,null,null,null,null,null,null,null,8,38]
[39,"¿Como se llamó el primer ordenador digital totalmente electrónico?","Colossus","C","o","l","o","s","s","u","s",null,null,null,null,null,null,null,null,null,null,null,39]
[40,"¿Cual fue el antepasado mas antiguo del ordenador?","Abaco","A","b","a","c","o",null,null,null,null,null,null,null,null,null,null,null,null,null,null,40]
[41,"Guillermo Marconi fue inventor de ?","radio","r","a","d","i","o",null,null,null,null,null,null,null,null,null,null,null,null,null,"la radio",41]
[42,"¿En que país se invento la caja registradora?","Estados Unidos","E","s","t","a","d","o","s",null,"U","n","i","d","o","s",null,null,null,null,null,42]
[43,"Quién descubrió la vacuna contra la rabia","Louis Pasteur","L","o","u","i","s",null,"P","a","s","t","e","u","r",null,null,null,null,null,"Luis Pasteur",43]
[44,"Quién descubrió la penicilina","Alexander Fleming","A","l","e","x","a","n","d","e","r",null,"F","l","e","m","i","n","g",null,null,44]
[45,"Quién descubrió la vacuna contra la viruela","Jenner","J","e","n","n","e","r",null,null,null,null,null,null,null,null,null,null,null,null,null,45]
[46,"Qué es el cártamo","cardo","c","a","r","d","o",null,null,null,null,null,null,null,null,null,null,null,null,null,"un cardo",46]
[47,"Cuál es el país en el que hay mayor número de conejos","Australia","A","u","s","t","r","a","l","i","a",null,null,null,null,null,null,null,null,null,null,47]
[48,"En qué programa de televisión apareció Carmen Sevilla como presentadora","tele cupon","t","e","l","e",null,"c","u","p","o","n",null,null,null,null,null,null,null,null,null,48]
[49,"Cómo se llama cada una de las piezas que componen un mosaico","tesela","t","e","s","e","l","a",null,null,null,null,null,null,null,null,null,null,null,null,null,49]
[50,"qué hay que añadir a la bechamel para que espese","harina","h","a","r","i","n","a",null,null,null,null,null,null,null,null,null,null,null,null,null,50]
[51,"¿Cual fue el primer ordenador digital moderno?","Mark I","M","a","r","k",null,"I",null,null,null,null,null,null,null,null,null,null,null,null,"Mark uno",51]
[52,"En qué país se inventó el neumático de goma?","Irlanda","I","r","l","a","n","d","a",null,null,null,null,null,null,null,null,null,null,null,null,{"$f":"A52","v":52}]
[53,"¿En qué país se inventó el generador eléctrico?","Inglaterra","I","n","g","l","a","t","e","r","r","a",null,null,null,null,null,null,null,null,null,53]
[54,"En qué país se inventó el estetoscopio?","Francia","F","r","a","n","c","i","a",null,null,null,null,null,null,null,null,null,null,null,null,54]
[55,"¿En qué país se inventó el arado de acero?","Estados Unidos","E","s","t","a","d","o","s",null,"U","n","i","d","o","s",null,null,null,null,null,55]
[56,"¿En qué país se inventó la calculadora?","Alemania","A","l","e","m","a","n","i","a",null,null,null,null,null,null,null,null,null,null,null,56]
[57,"¿En qué país se inventó la cámara fotográfica?","Estados Unidos","E","s","t","a","d","o","s",null,"U","n","i","d","o","s",null,null,null,null,null,57]
[58,"¿En qué país se inventó el Abaco?","China","C","h","i","n","a",null,null,null,null,null,null,null,null,null,null,null,null,null,null,58]
[59,"Michael Faraday inventor del ?","motor electrico","m","o","t","o","r",null,"e","l","e","c","t","r","i","c","o",null,null,null,"motor",59]
[60,"¿Que quiere decir CPU ? Falta una palabra de la sigla P (informática)","Unidad Central de Procesamiento","U","n","i","d","a","d",null,"c","e","n","t","r","a","l",null,null,null,null,"Unidad Central Procesamiento",60]
[61,"¿ Cómo se llamaba el derecho que se pagaba por el paso de los ganados ?","asadura","a","s","a","d","u","r","a",null,null,null,null,null,null,null,null,null,null,null,null,61]
[62,"Cuál es la cría del caballo","potro","p","o","t","r","o",null,null,null,null,null,null,null,null,null,null,null,null,null,"el potro",62]
[63,"En dónde pagarías con cruzeiros","Brasil","B","r","a","s","i","l",null,null,null,null,null,null,null,null,null,null,null,null,null,63]
[64,"En qué ciudad nació Marco Polo","Venecia","V","e","n","e","c","i","a",null,null,null,null,null,null,null,null,null,null,null,null,64]
[65,"De qué pez procede el caviar","esturion","e","s","t","u","r","i","o","n",null,null,null,null,null,null,null,null,null,null,null,65]
[66,"En las ruinas de qué ciudad podemos ver la \"Puerta de los leones\"","Micenas","M","i","c","e","n","a","s",null,null,null,null,null,null,null,null,null,null,null,null,66]
[67,"En qué siglo se produce el tránsito de la Edad Media a la Edad Moderna","XV","X","V",null,null,null,null,null,null,null,null,null,null,null,null,null,null,null,null,15,67]
[68,"De qué país es el piloto de Fórmula 1 Nelson Piquet","Brasil","B","r","a","s","i","l",null,null,null,null,null,null,null,null,null,null,null,null,null,68]
[69,"En qué país se promulgó la que es hoy la Constitución más antigua todavía en vigor","Estados Unidos","E","s","t","a","d","o","s",null,"U","n","i","d","o","s",null,null,null,null,null,69]
[70,"Quién dijo que la justicia es un cachondeo","Pedro Pacheco","P","e","d","r","o",null,"P","a","c","h","e","c","o",null,null,null,null,null,null,70]
[71,"Cómo se llama la parte trasera de un barco","popa","p","o","p","a",null,null,null,null,null,null,null,null,null,null,null,null,null,null,null,71]
[72,"cuál es el nombre actual de la antigua Persia","Iran","I","r","a","n",null,null,null,null,null,null,null,null,null,null,null,null,null,null,null,72]
[73,"cómo se llama a un grupo de cerdos","piara","p","i","a","r","a",null,null,null,null,null,null,null,null,null,null,null,null,null,null,73]
[74,"Dónde encontrarías la Ciudad Encantada (España)","Cuenca","C","u","e","n","c","a",null,null,null,null,null,null,null,null,null,null,null,null,null,74]
[75,"Quién descubrió el primer antibiótico","Alexander Fleming","A","l","e","x","a","n","d","e","r",null,"F","l","e","m","i","n","g",null,null,75]
[76,"Quién descubrió la forma de las neuronas ......?.....     ..........?.........      ............?.........","Santiago Ramon Cajal","S","a","n","t","i","a","g","o",null,"R","a","m","o","n",null,null,null,null,"Santiago Ramon y Cajal",76]
[77,"Quién descubrió la gravitación universal","Isaac Newton","I","s","a","a","c",null,"N","e","w ","t","o","n",null,null,null,null,null,null,"Newton",77]
[78,"Quien inventó el barco a vapor","Robert Fulton","R","o","b","e","r","t",null,"F","u","l","t","o","n",null,null,null,null,null,"Fulton",78]
[79,"Quién inventó el dirigible","Zeppelin","Z","e","p","p","e","l","i","n",null,null,null,null,null,null,null,null,null,null,null,79]
[80,"Quién inventó el lápiz","Standler","S","t","a","n","d","l","e","r",null,null,null,null,null,null,null,null,null,null,null,80]
[81,"¿Qué actor interpretó a Maximus Decimus Meridius, ganador de un óscar por ello, en la película Gladiator de  Ridley Scott ?","Russell Crowe","R","u","s","s","e","l",null,"C","r","o","w","e",null,null,null,null,null,null,null,81]
[82,"¿ Cuál fue la primera película en la que vimos a James Bond por primera vez ?","Doctor no","D","o","c","t","o","r",null,"N","o",null,null,null,null,null,null,null,null,null,null,82]
[83,"¿ A quién debemos el personaje inmortal de Michael Corleone en El Padrino ?","AlPacino","A","l","P","a","c","i","n","o",null,null,null,null,null,null,null,null,null,null,"Al Pacino",83]
[84,"¿ Cuál era la profesión de Hannibal Lecter, el canibal asesino de El Silencio de los Corderos ","psiquiatra","p","s","i","q","u","i","a","t","r","a",null,null,null,null,null,null,null,null,null,84]
[85,"¿ A lo alto de qué edificio se sube King Kong en la mítica escena final de la película ?","Empire State","E","m","p","i","r","e",null,"S","t","a","t","e",null,null,null,null,null,null,null,85]
[86,"¿  En qué juego se usan bambú, caractéres y circulos ?","Mah Jong","M","a","h",null,"J","o","n","g",null,null,null,null,null,null,null,null,null,null,null,{"$f":"A86","v":86}]
[87,"¿  Qué escultor francés fue el creador de \" El pensador \" y \" El beso\" ?","Auguste Rodin","A","u","g","u","s","t","e",null,"R","o","d","i","n",null,null,null,null,null,null,87]
[88,"¿  De qué serie de libros es Goscinny el escritor    y     Uderzo el ilustrador?","Asterix","A","s","t","e","r","i","x",null,null,null,null,null,null,null,null,null,null,null,null,88]
[89,"¿  Quién escribió el libro \" Robison Crusoe \" ? ","Daniel Defoe","D","a","n","i","e","l",null,"D","e","f","o","e",null,null,null,null,null,null,null,89]
[90,"¿  Quién se convirtió en presidente de Rusia en 1.991 ?","Boris Yelsin","B","o","r","i","s",null,"Y","e","l","s","i","n",null,null,null,null,null,null,null,90]
[91,"¿  Qué denominación recibió San Petersburgo durante la mayor parte del siglo XX ?","Leningrado","L","e","n","i","n","g","r","a","d","o",null,null,null,null,null,null,null,null,null,91]
[92,"¿ Cuál fue la última película de \" La guerra de las galaxias\" ?","venganza sith","v","e","n","g","a","n","z","a",null,"s","i","t","h",null,null,null,null,null,"La venganza de los Sith",92]
[93,"¿  Con qué nombre se conoce al pensamiento que mantiene que Dios creó el Universo y que da órdenes a los humanos a través de las revelaciones ?","Teismo","T","e","i","s","m","o",null,null,null,null,null,null,null,null,null,null,null,null,null,93]
[94,"¿  Quién se convirtió en 1.999 en el quinto hombre en ganar los cuatro torneos principales                            ( Wimbledon,  el Abierto de los Estados Unidos,  el Abierto de Australia  y el Abierto de Francia)   que componen el Grand Slam ?","Andre Agassi","A","n","d","r","e",null,"A","g","a","s","s","i",null,null,null,null,null,null,null,94]
[95,"¿ Cuándo voló por primera vez el Concorde ?........... 1.969,    1.974,    1.979,    1.984",1969,1,9,6,9,null,null,null,null,null,null,null,null,null,null,null,null,null,null,null,95]
[96,"¿ Quién es el autor de la novela \" Pobres gentes \" ?","F Dostoyevski","F",null,"D","o","s","t","o","y","e","v","s","k","i",null,null,null,null,null,null,96]
[97,"¿  Quién leyó descritas sus mazurcas como \" repugnantes \" y \" retorcidas \" por un crítico berlinés en 1.883 ?","Frederic Chopin","F","r","e","d","e","r","i","c",null,"C","h","o","p","i","n",null,null,null,null,97]
[98,"¿ De qué país es el kip (moneda) ?","Laos","L","a","o","s",null,null,null,null,null,null,null,null,null,null,null,null,null,null,null,98]
[99,"¿ Qué dios escandinavo da su nombre al jueves ?","Thor","T","h","o","r",null,null,null,null,null,null,null,null,null,null,null,null,null,null,null,99]
[100,"¿ Cuál es el nombre del último libro de la trilogía \" El señor de los anillos \" ?","retorno rey","r","e","t","o","r","n","o",null,"r","e","y",null,null,null,null,null,null,null,"El retorno del rey",100]
[101,"                  FINAL    botón rojo inicio",null,null,null,null,null,null,null,null,null,null,null,null,null,null,null,null,null,null,null,null,101]
[102,"                  FINAL    botón rojo inicio",null,null,null,null,null,null,null,null,null,null,null,null,null,null,null,null,null,null,null,null,102]
[103,"                  FINAL    botón rojo inicio",null,null,null,null,null,null,null,null,null,null,null,null,null,null,null,null,null,null,null,null,103]
[104,"                  FINAL    botón rojo inicio",null,null,null,null,null,null,null,null,null,null,null,null,null,null,null,null,null,null,null,null,104]
[105,"                  FINAL    botón rojo inicio",null,null,null,null,null,null,null,null,null,null,null,null,null,null,null,null,null,null,null,null,105]
[106,"                  FINAL    botón rojo inicio",null,null,null,null,null,null,null,null,null,null,null,null,null,null,null,null,null,null,null,null,106]
[107,"                  FINAL    botón rojo inicio",null,null,null,null,null,null,null,null,null,null,null,null,null,null,null,null,null,null,null,null,107]
[108,"                  FINAL    botón rojo inicio",null,null,null,null,null,null,null,null,null,null,null,null,null,null,null,null,null,null,null,null,108]
[109,"                  FINAL    botón rojo inicio",null,null,null,null,null,null,null,null,null,null,null,null,null,null,null,null,null,null,null,null,109]
[110,"                  FINAL    botón rojo inicio",null,null,null,null,null,null,null,null,null,null,null,null,null,null,null,null,null,null,null,null,110]
[111,"                  FINAL    botón rojo inicio",null,null,null,null,null,null,null,null,null,null,null,null,null,null,null,null,null,null,null,null,111]
[112,"                  FINAL    botón rojo inicio",null,null,null,null,null,null,null,null,null,null,null,null,null,null,null,null,null,null,null,null,112]
[113,"                  FINAL    botón rojo inicio",null,null,null,null,null,null,null,null,null,null,null,null,null,null,null,null,null,null,null,null,113]
[114,"                  FINAL    botón rojo inicio",null,null,null,null,null,null,null,null,null,null,null,null,null,null,null,null,null,null,null,null,114]
[115,"                  FINAL    botón rojo inicio",null,null,null,null,null,null,null,null,null,null,null,null,null,null,null,null,null,null,null,null,115]
[116,"                  FINAL    botón rojo inicio",null,null,null,null,null,null,null,null,null,null,null,null,null,null,null,null,null,null,null,null,116]
[117,"                  FINAL    botón rojo inicio",null,null,null,null,null,null,null,null,null,null,null,null,null,null,null,null,null,null,null,null,{"$f":"A117","v":117}]
[118,"                  FINAL    botón rojo inicio",null,null,null,null,null,null,null,null,null,null,null,null,null,null,null,null,null,null,null,null,118]
[119,"                  FINAL    botón rojo inicio",null,null,null,null,null,null,null,null,null,null,null,null,null,null,null,null,null,null,null,null,119]
[120,"                  FINAL    botón rojo inicio",null,null,null,null,null,null,null,null,null,null,null,null,null,null,null,null,null,null,null,null,120]
[121,"                  FINAL    botón rojo inicio",null,null,null,null,null,null,null,null,null,null,null,null,null,null,null,null,null,null,null,null,121]
[122,"                  FINAL    botón rojo inicio",null,null,null,null,null,null,null,null,null,null,null,null,null,null,null,null,null,null,null,null,122]
[123,"                  FINAL    botón rojo inicio",null,null,null,null,null,null,null,null,null,null,null,null,null,null,null,null,null,null,null,null,123]
[124,"                  FINAL    botón rojo inicio",null,null,null,null,null,null,null,null,null,null,null,null,null,null,null,null,null,null,null,null,124]
[125,"                  FINAL    botón rojo inicio",null,null,null,null,null,null,null,null,null,null,null,null,null,null,null,null,null,null,null,null,125]
[126,"                  FINAL    botón rojo inicio",null,null,null,null,null,null,null,null,null,null,null,null,null,null,null,null,null,null,null,null,126]
[127,"                  FINAL    botón rojo inicio",null,null,null,null,null,null,null,null,null,null,null,null,null,null,null,null,null,null,null,null,127]
[128,"                  FINAL    botón rojo inicio",null,null,null,null,null,null,null,null,null,null,null,null,null,null,null,null,null,null,null,null,128]
[129,"                  FINAL    botón rojo inicio",null,null,null,null,null,null,null,null,null,null,null,null,null,null,null,null,null,null,null,null,129]
[130,"                  FINAL    botón rojo inicio",null,null,null,null,null,null,null,null,null,null,null,null,null,null,null,null,null,null,null,null,130]
[131,"                  FINAL    botón rojo inicio",null,null,null,null,null,null,null,null,null,null,null,null,null,null,null,null,null,null,null,null,131]
[132,"                  FINAL    botón rojo inicio",null,null,null,null,null,null,null,null,null,null,null,null,null,null,null,null,null,null,null,null,132]
[133,"                  FINAL    botón rojo inicio",null,null,null,null,null,null,null,null,null,null,null,null,null,null,null,null,null,null,null,null,133]
[134,"                  FINAL    botón rojo inicio",null,null,null,null,null,null,null,null,null,null,null,null,null,null,null,null,null,null,null,null,134]
[135,"                  FINAL    botón rojo inicio",null,null,null,null,null,null,null,null,null,null,null,null,null,null,null,null,null,null,null,null,135]
[136,"                  FINAL    botón rojo inicio",null,null,null,null,null,null,null,null,null,null,null,null,null,null,null,null,null,null,null,null,136]
[137,"                  FINAL    botón rojo inicio",null,null,null,null,null,null,null,null,null,null,null,null,null,null,null,null,null,null,null,null,137]
[138,"                  FINAL    botón rojo inicio",null,null,null,null,null,null,null,null,null,null,null,null,null,null,null,null,null,null,null,null,138]
[139,"                  FINAL    botón rojo inicio",null,null,null,null,null,null,null,null,null,null,null,null,null,null,null,null,null,null,null,null,139]
[140,"                  FINAL    botón rojo inicio",null,null,null,null,null,null,null,null,null,null,null,null,null,null,null,null,null,null,null,null,140]
[141,"                  FINAL    botón rojo inicio",null,null,null,null,null,null,null,null,null,null,null,null,null,null,null,null,null,null,null,null,141]
[142,"                  FINAL    botón rojo inicio",null,null,null,null,null,null,null,null,null,null,null,null,null,null,null,null,null,null,null,null,142]
[143,"                  FINAL    botón rojo inicio",null,null,null,null,null,null,null,null,null,null,null,null,null,null,null,null,null,null,null,null,143]
[144,"                  FINAL    botón rojo inicio",null,null,null,null,null,null,null,null,null,null,null,null,null,null,null,null,null,null,null,null,144]
[145,"                  FINAL    botón rojo inicio",null,null,null,null,null,null,null,null,null,null,null,null,null,null,null,null,null,null,null,null,145]
[146,"                  FINAL    botón rojo inicio",null,null,null,null,null,null,null,null,null,null,null,null,null,null,null,null,null,null,null,null,146]
[147,"                  FINAL    botón rojo inicio",null,null,null,null,null,null,null,null,null,null,null,null,null,null,null,null,null,null,null,null,147]
[148,"                  FINAL    botón rojo inicio",null,null,null,null,null,null,null,null,null,null,null,null,null,null,null,null,null,null,null,null,148]
[149,"                  FINAL    botón rojo inicio",null,null,null,null,null,null,null,null,null,null,null,null,null,null,null,null,null,null,null,null,149]
[150,"                  FINAL    botón rojo inicio",null,null,null,null,null,null,null,null,null,null,null,null,null,null,null,null,null,null,null,null,150]
[151,"                  FINAL    botón rojo inicio",null,null,null,null,null,null,null,null,null,null,null,null,null,null,null,null,null,null,null,null,151]
[152,"                  FINAL    botón rojo inicio",null,null,null,null,null,null,null,null,null,null,null,null,null,null,null,null,null,null,null,null,152]
[153,"                  FINAL    botón rojo inicio",null,null,null,null,null,null,null,null,null,null,null,null,null,null,null,null,null,null,null,null,153]
[154,"                  FINAL    botón rojo inicio",null,null,null,null,null,null,null,null,null,null,null,null,null,null,null,null,null,null,null,null,154]
[155,"                  FINAL    botón rojo inicio",null,null,null,null,null,null,null,null,null,null,null,null,null,null,null,null,null,null,null,null,155]
[156,"                  FINAL    botón rojo inicio",null,null,null,null,null,null,null,null,null,null,null,null,null,null,null,null,null,null,null,null,156]
[157,"                  FINAL    botón rojo inicio",null,null,null,null,null,null,null,null,null,null,null,null,null,null,null,null,null,null,null,null,157]
[158,"                  FINAL    botón rojo inicio",null,null,null,null,null,null,null,null,null,null,null,null,null,null,null,null,null,null,null,null,158]
[159,"                  FINAL    botón rojo inicio",null,null,null,null,null,null,null,null,null,null,null,null,null,null,null,null,null,null,null,null,159]
[160,"                  FINAL    botón rojo inicio",null,null,null,null,null,null,null,null,null,null,null,null,null,null,null,null,null,null,null,null,160]
[161,"                  FINAL    botón rojo inicio",null,null,null,null,null,null,null,null,null,null,null,null,null,null,null,null,null,null,null,null,161]
[162,"                  FINAL    botón rojo inicio",null,null,null,null,null,null,null,null,null,null,null,null,null,null,null,null,null,null,null,null,162]
[163,"                  FINAL    botón rojo inicio",null,null,null,null,null,null,null,null,null,null,null,null,null,null,null,null,null,null,null,null,163]
[164,"                  FINAL    botón rojo inicio",null,null,null,null,null,null,null,null,null,null,null,null,null,null,null,null,null,null,null,null,164]
[165,"                  FINAL    botón rojo inicio",null,null,null,null,null,null,null,null,null,null,null,null,null,null,null,null,null,null,null,null,165]
[166,"                  FINAL    botón rojo inicio",null,null,null,null,null,null,null,null,null,null,null,null,null,null,null,null,null,null,null,null,166]
[167,"                  FINAL    botón rojo inicio",null,null,null,null,null,null,null,null,null,null,null,null,null,null,null,null,null,null,null,null,167]
[168,"                  FINAL    botón rojo inicio",null,null,null,null,null,null,null,null,null,null,null,null,null,null,null,null,null,null,null,null,168]
[169,"                  FINAL    botón rojo inicio",null,null,null,null,null,null,null,null,null,null,null,null,null,null,null,null,null,null,null,null,169]
[170,"                  FINAL    botón rojo inicio",null,null,null,null,null,null,null,null,null,null,null,null,null,null,null,null,null,null,null,null,170]
[171,"                  FINAL    botón rojo inicio",null,null,null,null,null,null,null,null,null,null,null,null,null,null,null,null,null,null,null,null,171]
[172,"                  FINAL    botón rojo inicio",null,null,null,null,null,null,null,null,null,null,null,null,null,null,null,null,null,null,null,null,172]
[173,"                  FINAL    botón rojo inicio",null,null,null,null,null,null,null,null,null,null,null,null,null,null,null,null,null,null,null,null,173]
[174,"                  FINAL    botón rojo inicio",null,null,null,null,null,null,null,null,null,null,null,null,null,null,null,null,null,null,null,null,174]
[175,"                  FINAL    botón rojo inicio",null,null,null,null,null,null,null,null,null,null,null,null,null,null,null,null,null,null,null,null,175]
[176,"                  FINAL    botón rojo inicio",null,null,null,null,null,null,null,null,null,null,null,null,null,null,null,null,null,null,null,null,176]
[177,"                  FINAL    botón rojo inicio",null,null,null,null,null,null,null,null,null,null,null,null,null,null,null,null,null,null,null,null,177]
[178,"                  FINAL    botón rojo inicio",null,null,null,null,null,null,null,null,null,null,null,null,null,null,null,null,null,null,null,null,178]
[179,"                  FINAL    botón rojo inicio",null,null,null,null,null,null,null,null,null,null,null,null,null,null,null,null,null,null,null,null,179]
[180,"                  FINAL    botón rojo inicio",null,null,null,null,null,null,null,null,null,null,null,null,null,null,null,null,null,null,null,null,180]
[181,"                  FINAL    botón rojo inicio",null,null,null,null,null,null,null,null,null,null,null,null,null,null,null,null,null,null,null,null,{"$f":"A181","v":181}]
[182,"                  FINAL    botón rojo inicio",null,null,null,null,null,null,null,null,null,null,null,null,null,null,null,null,null,null,null,null,182]
[183,"                  FINAL    botón rojo inicio",null,null,null,null,null,null,null,null,null,null,null,null,null,null,null,null,null,null,null,null,183]
[184,"                  FINAL    botón rojo inicio",null,null,null,null,null,null,null,null,null,null,null,null,null,null,null,null,null,null,null,null,184]
[185,"                  FINAL    botón rojo inicio",null,null,null,null,null,null,null,null,null,null,null,null,null,null,null,null,null,null,null,null,185]
[186,"                  FINAL    botón rojo inicio",null,null,null,null,null,null,null,null,null,null,null,null,null,null,null,null,null,null,null,null,186]
[187,"                  FINAL    botón rojo inicio",null,null,null,null,null,null,null,null,null,null,null,null,null,null,null,null,null,null,null,null,187]
[188,"                  FINAL    botón rojo inicio",null,null,null,null,null,null,null,null,null,null,null,null,null,null,null,null,null,null,null,null,188]
[189,"                  FINAL    botón rojo inicio",null,null,null,null,null,null,null,null,null,null,null,null,null,null,null,null,null,null,null,null,189]
[190,"                  FINAL    botón rojo inicio",null,null,null,null,null,null,null,null,null,null,null,null,null,null,null,null,null,null,null,null,190]
[191,"                  FINAL    botón rojo inicio",null,null,null,null,null,null,null,null,null,null,null,null,null,null,null,null,null,null,null,null,191]
[192,"                  FINAL    botón rojo inicio",null,null,null,null,null,null,null,null,null,null,null,null,null,null,null,null,null,null,null,null,192]
[193,"                  FINAL    botón rojo inicio",null,null,null,null,null,null,null,null,null,null,null,null,null,null,null,null,null,null,null,null,193]
[194,"                  FINAL    botón rojo inicio",null,null,null,null,null,null,null,null,null,null,null,null,null,null,null,null,null,null,null,null,194]
[195,"                  FINAL    botón rojo inicio",null,null,null,null,null,null,null,null,null,null,null,null,null,null,null,null,null,null,null,null,195]
[196,"                  FINAL    botón rojo inicio",null,null,null,null,null,null,null,null,null,null,null,null,null,null,null,null,null,null,null,null,196]
[197,"                  FINAL    botón rojo inicio",null,null,null,null,null,null,null,null,null,null,null,null,null,null,null,null,null,null,null,null,197]
[198,"                  FINAL    botón rojo inicio",null,null,null,null,null,null,null,null,null,null,null,null,null,null,null,null,null,null,null,null,198]
[199,"                  FINAL    botón rojo inicio",null,null,null,null,null,null,null,null,null,null,null,null,null,null,null,null,null,null,null,null,199]
[200,"                  FINAL    botón rojo inicio",null,null,null,null,null,null,null,null,null,null,null,null,null,null,null,null,null,null,null,null,200]
[201,"                  FINAL    botón rojo inicio",null,null,null,null,null,null,null,null,null,null,null,null,null,null,null,null,null,null,null,null,201]
[202,"                  FINAL    botón rojo inicio",null,null,null,null,null,null,null,null,null,null,null,null,null,null,null,null,null,null,null,null,202]
[203,"                  FINAL    botón rojo inicio",null,null,null,null,null,null,null,null,null,null,null,null,null,null,null,null,null,null,null,null,203]
[204,"                  FINAL    botón rojo inicio",null,null,null,null,null,null,null,null,null,null,null,null,null,null,null,null,null,null,null,null,204]
[205,null,null,null,null,null,null,null,null,null,null,null,null,null,null,null,null,null,null,null,null,null,205]
[206,null,null,null,null,null,null,null,null,null,null,null,null,null,null,null,null,null,null,null,null,null,206]
[207,null,null,null,null,null,null,null,null,null,null,null,null,null,null,null,null,null,null,null,null,null,207]
[208,null,null,null,null,null,null,null,null,null,null,null,null,null,null,null,null,null,null,null,null,null,208]
[209,null,null,null,null,null,null,null,null,null,null,null,null,null,null,null,null,null,null,null,null,null,209]
[210,null,null,null,null,null,null,null,null,null,null,null,null,null,null,null,null,null,null,null,null,null,210]
[211,null,null,null,null,null,null,null,null,null,null,null,null,null,null,null,null,null,null,null,null,null,211]
[212,null,null,null,null,null,null,null,null,null,null,null,null,null,null,null,null,null,null,null,null,null,212]
[213,null,null,null,null,null,null,null,null,null,null,null,null,null,null,null,null,null,null,null,null,null,213]
[214,null,null,null,null,null,null,null,null,null,null,null,null,null,null,null,null,null,null,null,null,null,214]
[215,null,null,null,null,null,null,null,null,null,null,null,null,null,null,null,null,null,null,null,null,null,215]
[216,null,null,null,null,null,null,null,null,null,null,null,null,null,null,null,null,null,null,null,null,null,216]
[217,null,null,null,null,null,null,null,null,null,null,null,null,null,null,null,null,null,null,null,null,null,217]
[218,null,null,null,null,null,null,null,null,null,null,null,null,null,null,null,null,null,null,null,null,null,218]
[219,null,null,null,null,null,null,null,null,null,null,null,null,null,null,null,null,null,null,null,null,null,219]
[220,null,null,null,null,null,null,null,null,null,null,null,null,null,null,null,null,null,null,null,null,null,220]
[221,null,null,null,null,null,null,null,null,null,null,null,null,null,null,null,null,null,null,null,null,null,221]
[222,null,null,null,null,null,null,null,null,null,null,null,null,null,null,null,null,null,null,null,null,null,222]
[223,null,null,null,null,null,null,null,null,null,null,null,null,null,null,null,null,null,null,null,null,null,223]
[224,null,null,null,null,null,null,null,null,null,null,null,null,null,null,null,null,null,null,null,null,null,224]
[225,null,null,null,null,null,null,null,null,null,null,null,null,null,null,null,null,null,null,null,null,null,225]
[226,null,null,null,null,null,null,null,null,null,null,null,null,null,null,null,null,null,null,null,null,null,226]
[227,null,null,null,null,null,null,null,null,null,null,null,null,null,null,null,null,null,null,null,null,null,227]
[228,null,null,null,null,null,null,null,null,null,null,null,null,null,null,null,null,null,null,null,null,null,228]
[243,null,null,null,null,null,null,null,null,null,null,null,null,null,null,null,null,null,null,null,null,null,243]
[244,null,null,null,null,null,null,null,null,null,null,null,null,null,null,null,null,null,null,null,null,null,244]
[245,null,null,null,null,null,null,null,null,null,null,null,null,null,null,null,null,null,null,null,null,null,245]
[246,null,null,null,null,null,null,null,null,null,null,null,null,null,null,null,null,null,null,null,null,null,246]
[247,null,null,null,null,null,null,null,null,null,null,null,null,null,null,null,null,null,null,null,null,null,247]
[248,null,null,null,null,null,null,null,null,null,null,null,null,null,null,null,null,null,null,null,null,null,248]
[249,null,null,null,null,null,null,null,null,null,null,null,null,null,null,null,null,null,null,null,null,null,249]
[250,null,null,null,null,null,null,null,null,null,null,null,null,null,null,null,null,null,null,null,null,null,250]
[251,null,null,null,null,null,null,null,null,null,null,null,null,null,null,null,null,null,null,null,null,null,251]
[252,null,null,null,null,null,null,null,null,null,null,null,null,null,null,null,null,null,null,null,null,null,252]
[253,null,null,null,null,null,null,null,null,null,null,null,null,null,null,null,null,null,null,null,null,null,253]
[254,null,null,null,null,null,null,null,null,null,null,null,null,null,null,null,null,null,null,null,null,null,254]
[255,null,null,null,null,null,null,null,null,null,null,null,null,null,null,null,null,null,null,null,null,null,255]
[256,null,null,null,null,null,null,null,null,null,null,null,null,null,null,null,null,null,null,null,null,null,256]
[257,null,null,null,null,null,null,null,null,null,null,null,null,null,null,null,null,null,null,null,null,null,257]
[258,null,null,null,null,null,null,null,null,null,null,null,null,null,null,null,null,null,null,null,null,null,258]
[259,null,null,null,null,null,null,null,null,null,null,null,null,null,null,null,null,null,null,null,null,null,{"$f":"A245","v":259}]
[260,null,null,null,null,null,null,null,null,null,null,null,null,null,null,null,null,null,null,null,null,null,260]
[261,null,null,null,null,null,null,null,null,null,null,null,null,null,null,null,null,null,null,null,null,null,261]
[262,null,null,null,null,null,null,null,null,null,null,null,null,null,null,null,null,null,null,null,null,null,262]
[263,null,null,null,null,null,null,null,null,null,null,null,null,null,null,null,null,null,null,null,null,null,263]
[264,null,null,null,null,null,null,null,null,null,null,null,null,null,null,null,null,null,null,null,null,null,264]
[265,null,null,null,null,null,null,null,null,null,null,null,null,null,null,null,null,null,null,null,null,null,265]
[266,null,null,null,null,null,null,null,null,null,null,null,null,null,null,null,null,null,null,null,null,null,266]
[267,null,null,null,null,null,null,null,null,null,null,null,null,null,null,null,null,null,null,null,null,null,267]
[268,null,null,null,null,null,null,null,null,null,null,null,null,null,null,null,null,null,null,null,null,null,268]
[269,null,null,null,null,null,null,null,null,null,null,null,null,null,null,null,null,null,null,null,null,null,271]
[270,null,null,null,null,null,null,null,null,null,null,null,null,null,null,null,null,null,null,null,null,null,272]
[271,null,null,null,null,null,null,null,null,null,null,null,null,null,null,null,null,null,null,null,null,null,273]
[272,null,null,null,null,null,null,null,null,null,null,null,null,null,null,null,null,null,null,null,null,null,274]
[273,null,null,null,null,null,null,null,null,null,null,null,null,null,null,null,null,null,null,null,null,null,275]
[274,null,null,null,null,null,null,null,null,null,null,null,null,null,null,null,null,null,null,null,null,null,276]
[275,null,null,null,null,null,null,null,null,null,null,null,null,null,null,null,null,null,null,null,null,null,277]
[276,null,null,null,null,null,null,null,null,null,null,null,null,null,null,null,null,null,null,null,null,null,278]
[277,null,null,null,null,null,null,null,null,null,null,null,null,null,null,null,null,null,null,null,null,null,279]
[278,null,null,null,null,null,null,null,null,null,null,null,null,null,null,null,null,null,null,null,null,null,280]
[279,null,null,null,null,null,null,null,null,null,null,null,null,null,null,null,null,null,null,null,null,null,281]
[280,null,null,null,null,null,null,null,null,null,null,null,null,null,null,null,null,null,null,null,null,null,282]
[281,null,null,null,null,null,null,null,null,null,null,null,null,null,null,null,null,null,null,null,null,null,283]
[282,null,null,null,null,null,null,null,null,null,null,null,null,null,null,null,null,null,null,null,null,null,284]
[283,null,null,null,null,null,null,null,null,null,null,null,null,null,null,null,null,null,null,null,null,null,285]
[284,null,null,null,null,null,null,null,null,null,null,null,null,null,null,null,null,null,null,null,null,null,286]
[285,null,null,null,null,null,null,null,null,null,null,null,null,null,null,null,null,null,null,null,null,null,287]
[286,null,null,null,null,null,null,null,null,null,null,null,null,null,null,null,null,null,null,null,null,null,288]
[287,null,null,null,null,null,null,null,null,null,null,null,null,null,null,null,null,null,null,null,null,null,289]
[288,null,null,null,null,null,null,null,null,null,null,null,null,null,null,null,null,null,null,null,null,null,290]
[289,null,null,null,null,null,null,null,null,null,null,null,null,null,null,null,null,null,null,null,null,null,291]
[290,null,null,null,null,null,null,null,null,null,null,null,null,null,null,null,null,null,null,null,null,null,292]
[291,null,null,null,null,null,null,null,null,null,null,null,null,null,null,null,null,null,null,null,null,null,293]
[292,null,null,null,null,null,null,null,null,null,null,null,null,null,null,null,null,null,null,null,null,null,294]
[293,null,null,null,null,null,null,null,null,null,null,null,null,null,null,null,null,null,null,null,null,null,295]
[294,null,null,null,null,null,null,null,null,null,null,null,null,null,null,null,null,null,null,null,null,null,296]
[295,null,null,null,null,null,null,null,null,null,null,null,null,null,null,null,null,null,null,null,null,null,297]
[296,null,null,null,null,null,null,null,null,null,null,null,null,null,null,null,null,null,null,null,null,null,298]
[297,null,null,null,null,null,null,null,null,null,null,null,null,null,null,null,null,null,null,null,null,null,299]
[298,null,null,null,null,null,null,null,null,null,null,null,null,null,null,null,null,null,null,null,null,null,300]
[299,null,null,null,null,null,null,null,null,null,null,null,null,null,null,null,null,null,null,null,null,null,301]
[300,null,null,null,null,null,null,null,null,null,null,null,null,null,null,null,null,null,null,null,null,null,302]
[301,null,null,null,null,null,null,null,null,null,null,null,null,null,null,null,null,null,null,null,null,null,303]
[302,null,null,null,null,null,null,null,null,null,null,null,null,null,null,null,null,null,null,null,null,null,304]
[303,null,null,null,null,null,null,null,null,null,null,null,null,null,null,null,null,null,null,null,null,null,305]
[304,null,null,null,null,null,null,null,null,null,null,null,null,null,null,null,null,null,null,null,null,null,306]
[305,null,null,null,null,null,null,null,null,null,null,null,null,null,null,null,null,null,null,null,null,null,307]
[306,null,null,null,null,null,null,null,null,null,null,null,null,null,null,null,null,null,null,null,null,null,308]
[307,null,null,null,null,null,null,null,null,null,null,null,null,null,null,null,null,null,null,null,null,null,309]
[308,null,null,null,null,null,null,null,null,null,null,null,null,null,null,null,null,null,null,null,null,null,310]
[309,null,null,null,null,null,null,null,null,null,null,null,null,null,null,null,null,null,null,null,null,null,311]
[310,null,null,null,null,null,null,null,null,null,null,null,null,null,null,null,null,null,null,null,null,null,312]
[311,null,null,null,null,null,null,null,null,null,null,null,null,null,null,null,null,null,null,null,null,null,313]
[312,null,null,null,null,null,null,null,null,null,null,null,null,null,null,null,null,null,null,null,null,null,314]
[313,null,null,null,null,null,null,null,null,null,null,null,null,null,null,null,null,null,null,null,null,null,315]
[314,null,null,null,null,null,null,null,null,null,null,null,null,null,null,null,null,null,null,null,null,null,316]
[315,null,null,null,null,null,null,null,null,null,null,null,null,null,null,null,null,null,null,null,null,null,317]
[316,null,null,null,null,null,null,null,null,null,null,null,null,null,null,null,null,null,null,null,null,null,318]
[317,null,null,null,null,null,null,null,null,null,null,null,null,null,null,null,null,null,null,null,null,null,319]
[318,null,null,null,null,null,null,null,null,null,null,null,null,null,null,null,null,null,null,null,null,null,320]
[319,null,null,null,null,null,null,null,null,null,null,null,null,null,null,null,null,null,null,null,null,null,321]
[320,null,null,null,null,null,null,null,null,null,null,null,null,null,null,null,null,null,null,null,null,null,322]
[321,null,null,null,null,null,null,null,null,null,null,null,null,null,null,null,null,null,null,null,null,null,323]
[322,null,null,null,null,null,null,null,null,null,null,null,null,null,null,null,null,null,null,null,null,null,324]
[323,null,null,null,null,null,null,null,null,null,null,null,null,null,null,null,null,null,null,null,null,null,325]
[324,null,null,null,null,null,null,null,null,null,null,null,null,null,null,null,null,null,null,null,null,null,326]
[325,null,null,null,null,null,null,null,null,null,null,null,null,null,null,null,null,null,null,null,null,null,327]
[326,null,null,null,null,null,null,null,null,null,null,null,null,null,null,null,null,null,null,null,null,null,328]
[327,null,null,null,null,null,null,null,null,null,null,null,null,null,null,null,null,null,null,null,null,null,329]
[328,null,null,null,null,null,null,null,null,null,null,null,null,null,null,null,null,null,null,null,null,null,330]
[329,null,null,null,null,null,null,null,null,null,null,null,null,null,null,null,null,null,null,null,null,null,331]
[330,null,null,null,null,null,null,null,null,null,null,null,null,null,null,null,null,null,null,null,null,null,332]
[331,null,null,null,null,null,null,null,null,null,null,null,null,null,null,null,null,null,null,null,null,null,333]
[332,null,null,null,null,null,null,null,null,null,null,null,null,null,null,null,null,null,null,null,null,null,334]
[333,null,null,null,null,null,null,null,null,null,null,null,null,null,null,null,null,null,null,null,null,null,335]
[334,null,null,null,null,null,null,null,null,null,null,null,null,null,null,null,null,null,null,null,null,null,336]
[335,null,null,null,null,null,null,null,null,null,null,null,null,null,null,null,null,null,null,null,null,null,337]
[336,null,null,null,null,null,null,null,null,null,null,null,null,null,null,null,null,null,null,null,null,null,338]
[337,null,null,null,null,null,null,null,null,null,null,null,null,null,null,null,null,null,null,null,null,null,339]
[338,null,null,null,null,null,null,null,null,null,null,null,null,null,null,null,null,null,null,null,null,null,340]
[339,null,null,null,null,null,null,null,null,null,null,null,null,null,null,null,null,null,null,null,null,null,341]
[340,null,null,null,null,null,null,null,null,null,null,null,null,null,null,null,null,null,null,null,null,null,342]
[341,null,null,null,null,null,null,null,null,null,null,null,null,null,null,null,null,null,null,null,null,null,343]
[342,null,null,null,null,null,null,null,null,null,null,null,null,null,null,null,null,null,null,null,null,null,344]
[343,null,null,null,null,null,null,null,null,null,null,null,null,null,null,null,null,null,null,null,null,null,345]
[344,null,null,null,null,null,null,null,null,null,null,null,null,null,null,null,null,null,null,null,null,null,346]
[345,null,null,null,null,null,null,null,null,null,null,null,null,null,null,null,null,null,null,null,null,null,347]
[346,null,null,null,null,null,null,null,null,null,null,null,null,null,null,null,null,null,null,null,null,null,348]
[347,null,null,null,null,null,null,null,null,null,null,null,null,null,null,null,null,null,null,null,null,null,349]
[348,null,null,null,null,null,null,null,null,null,null,null,null,null,null,null,null,null,null,null,null,null,350]
[349,null,null,null,null,null,null,null,null,null,null,null,null,null,null,null,null,null,null,null,null,null,351]
[350,null,null,null,null,null,null,null,null,null,null,null,null,null,null,null,null,null,null,null,null,null,352]
[351,null,null,null,null,null,null,null,null,null,null,null,null,null,null,null,null,null,null,null,null,null,353]
[352,null,null,null,null,null,null,null,null,null,null,null,null,null,null,null,null,null,null,null,null,null,354]
[353,null,null,null,null,null,null,null,null,null,null,null,null,null,null,null,null,null,null,null,null,null,355]
[354,null,null,null,null,null,null,null,null,null,null,null,null,null,null,null,null,null,null,null,null,null,356]
[355,null,null,null,null,null,null,null,null,null,null,null,null,null,null,null,null,null,null,null,null,null,357]
[356,null,null,null,null,null,null,null,null,null,null,null,null,null,null,null,null,null,null,null,null,null,358]
[357,null,null,null,null,null,null,null,null,null,null,null,null,null,null,null,null,null,null,null,null,null,359]
[358,null,null,null,null,null,null,null,null,null,null,null,null,null,null,null,null,null,null,null,null,null,360]
[359,null,null,null,null,null,null,null,null,null,null,null,null,null,null,null,null,null,null,null,null,null,361]
[360,null,null,null,null,null,null,null,null,null,null,null,null,null,null,null,null,null,null,null,null,null,362]
[361,null,null,null,null,null,null,null,null,null,null,null,null,null,null,null,null,null,null,null,null,null,363]
[362,null,null,null,null,null,null,null,null,null,null,null,null,null,null,null,null,null,null,null,null,null,364]
[363,null,null,null,null,null,null,null,null,null,null,null,null,null,null,null,null,null,null,null,null,null,365]
[364,null,null,null,null,null,null,null,null,null,null,null,null,null,null,null,null,null,null,null,null,null,366]
[365,null,null,null,null,null,null,null,null,null,null,null,null,null,null,null,null,null,null,null,null,null,367]
[366,null,null,null,null,null,null,null,null,null,null,null,null,null,null,null,null,null,null,null,null,null,368]
[367,null,null,null,null,null,null,null,null,null,null,null,null,null,null,null,null,null,null,null,null,null,369]
[368,null,null,null,null,null,null,null,null,null,null,null,null,null,null,null,null,null,null,null,null,null,370]
[369,null,null,null,null,null,null,null,null,null,null,null,null,null,null,null,null,null,null,null,null,null,371]
[370,null,null,null,null,null,null,null,null,null,null,null,null,null,null,null,null,null,null,null,null,null,372]
[371,null,null,null,null,null,null,null,null,null,null,null,null,null,null,null,null,null,null,null,null,null,373]
[372,null,null,null,null,null,null,null,null,null,null,null,null,null,null,null,null,null,null,null,null,null,374]
[373,null,null,null,null,null,null,null,null,null,null,null,null,null,null,null,null,null,null,null,null,null,375]
[374,null,null,null,null,null,null,null,null,null,null,null,null,null,null,null,null,null,null,null,null,null,376]
[375,null,null,null,null,null,null,null,null,null,null,null,null,null,null,null,null,null,null,null,null,null,377]
[376,null,null,null,null,null,null,null,null,null,null,null,null,null,null,null,null,null,null,null,null,null,378]
[377,null,null,null,null,null,null,null,null,null,null,null,null,null,null,null,null,null,null,null,null,null,379]
[378,null,null,null,null,null,null,null,null,null,null,null,null,null,null,null,null,null,null,null,null,null,380]
[379,null,null,null,null,null,null,null,null,null,null,null,null,null,null,null,null,null,null,null,null,null,381]
[380,null,null,null,null,null,null,null,null,null,null,null,null,null,null,null,null,null,null,null,null,null,382]
[381,null,null,null,null,null,null,null,null,null,null,null,null,null,null,null,null,null,null,null,null,null,383]
[382,null,null,null,null,null,null,null,null,null,null,null,null,null,null,null,null,null,null,null,null,null,384]
[383,null,null,null,null,null,null,null,null,null,null,null,null,null,null,null,null,null,null,null,null,null,385]
[384,null,null,null,null,null,null,null,null,null,null,null,null,null,null,null,null,null,null,null,null,null,386]
[385,null,null,null,null,null,null,null,null,null,null,null,null,null,null,null,null,null,null,null,null,null,387]
[386,null,null,null,null,null,null,null,null,null,null,null,null,null,null,null,null,null,null,null,null,null,388]
[387,null,null,null,null,null,null,null,null,null,null,null,null,null,null,null,null,null,null,null,null,null,389]
[388,null,null,null,null,null,null,null,null,null,null,null,null,null,null,null,null,null,null,null,null,null,390]
[389,null,null,null,null,null,null,null,null,null,null,null,null,null,null,null,null,null,null,null,null,null,391]
[390,null,null,null,null,null,null,null,null,null,null,null,null,null,null,null,null,null,null,null,null,null,392]
[391,null,null,null,null,null,null,null,null,null,null,null,null,null,null,null,null,null,null,null,null,null,393]
[392,null,null,null,null,null,null,null,null,null,null,null,null,null,null,null,null,null,null,null,null,null,394]
[393,null,null,null,null,null,null,null,null,null,null,null,null,null,null,null,null,null,null,null,null,null,395]
[394,null,null,null,null,null,null,null,null,null,null,null,null,null,null,null,null,null,null,null,null,null,396]
[395,null,null,null,null,null,null,null,null,null,null,null,null,null,null,null,null,null,null,null,null,null,397]
[396,null,null,null,null,null,null,null,null,null,null,null,null,null,null,null,null,null,null,null,null,null,398]
[397,null,null,null,null,null,null,null,null,null,null,null,null,null,null,null,null,null,null,null,null,null,399]
[398,null,null,null,null,null,null,null,null,null,null,null,null,null,null,null,null,null,null,null,null,null,400]
[399,null,null,null,null,null,null,null,null,null,null,null,null,null,null,null,null,null,null,null,null,null,401]
[400,null,null,null,null,null,null,null,null,null,null,null,null,null,null,null,null,null,null,null,null,null,402]
[401,null,null,null,null,null,null,null,null,null,null,null,null,null,null,null,null,null,null,null,null,null,403]
[402,null,null,null,null,null,null,null,null,null,null,null,null,null,null,null,null,null,null,null,null,null,404]
[403,null,null,null,null,null,null,null,null,null,null,null,null,null,null,null,null,null,null,null,null,null,405]
[404,null,null,null,null,null,null,null,null,null,null,null,null,null,null,null,null,null,null,null,null,null,406]
[405,null,null,null,null,null,null,null,null,null,null,null,null,null,null,null,null,null,null,null,null,null,407]
[406,null,null,null,null,null,null,null,null,null,null,null,null,null,null,null,null,null,null,null,null,null,408]
[407,null,null,null,null,null,null,null,null,null,null,null,null,null,null,null,null,null,null,null,null,null,409]
[408,null,null,null,null,null,null,null,null,null,null,null,null,null,null,null,null,null,null,null,null,null,410]
[409,null,null,null,null,null,null,null,null,null,null,null,null,null,null,null,null,null,null,null,null,null,411]
[410,null,null,null,null,null,null,null,null,null,null,null,null,null,null,null,null,null,null,null,null,null,412]
[411,null,null,null,null,null,null,null,null,null,null,null,null,null,null,null,null,null,null,null,null,null,413]
[412,null,null,null,null,null,null,null,null,null,null,null,null,null,null,null,null,null,null,null,null,null,414]
[413,null,null,null,null,null,null,null,null,null,null,null,null,null,null,null,null,null,null,null,null,null,415]
[414,null,null,null,null,null,null,null,null,null,null,null,null,null,null,null,null,null,null,null,null,null,416]
[415,null,null,null,null,null,null,null,null,null,null,null,null,null,null,null,null,null,null,null,null,null,417]
[416,null,null,null,null,null,null,null,null,null,null,null,null,null,null,null,null,null,null,null,null,null,418]
[417,null,null,null,null,null,null,null,null,null,null,null,null,null,null,null,null,null,null,null,null,null,419]
[418,null,null,null,null,null,null,null,null,null,null,null,null,null,null,null,null,null,null,null,null,null,420]
[419,null,null,null,null,null,null,null,null,null,null,null,null,null,null,null,null,null,null,null,null,null,421]
[420,null,null,null,null,null,null,null,null,null,null,null,null,null,null,null,null,null,null,null,null,null,422]
[421,null,null,null,null,null,null,null,null,null,null,null,null,null,null,null,null,null,null,null,null,null,423]
[422,null,null,null,null,null,null,null,null,null,null,null,null,null,null,null,null,null,null,null,null,null,424]
[423,null,null,null,null,null,null,null,null,null,null,null,null,null,null,null,null,null,null,null,null,null,425]
[424,null,null,null,null,null,null,null,null,null,null,null,null,null,null,null,null,null,null,null,null,null,426]
[425,null,null,null,null,null,null,null,null,null,null,null,null,null,null,null,null,null,null,null,null,null,427]
[426,null,null,null,null,null,null,null,null,null,null,null,null,null,null,null,null,null,null,null,null,null,428]
[427,null,null,null,null,null,null,null,null,null,null,null,null,null,null,null,null,null,null,null,null,null,429]
[428,null,null,null,null,null,null,null,null,null,null,null,null,null,null,null,null,null,null,null,null,null,430]
[429,null,null,null,null,null,null,null,null,null,null,null,null,null,null,null,null,null,null,null,null,null,431]
[430,null,null,null,null,null,null,null,null,null,null,null,null,null,null,null,null,null,null,null,null,null,432]
[431,null,null,null,null,null,null,null,null,null,null,null,null,null,null,null,null,null,null,null,null,null,433]
[432,null,null,null,null,null,null,null,null,null,null,null,null,null,null,null,null,null,null,null,null,null,434]
[433,null,null,null,null,null,null,null,null,null,null,null,null,null,null,null,null,null,null,null,null,null,435]
[434,null,null,null,null,null,null,null,null,null,null,null,null,null,null,null,null,null,null,null,null,null,436]
[435,null,null,null,null,null,null,null,null,null,null,null,null,null,null,null,null,null,null,null,null,null,437]
[436,null,null,null,null,null,null,null,null,null,null,null,null,null,null,null,null,null,null,null,null,null,438]
[437,null,null,null,null,null,null,null,null,null,null,null,null,null,null,null,null,null,null,null,null,null,439]
[438,null,null,null,null,null,null,null,null,null,null,null,null,null,null,null,null,null,null,null,null,null,440]
[439,null,null,null,null,null,null,null,null,null,null,null,null,null,null,null,null,null,null,null,null,null,441]
[440,null,null,null,null,null,null,null,null,null,null,null,null,null,null,null,null,null,null,null,null,null,442]
[441,null,null,null,null,null,null,null,null,null,null,null,null,null,null,null,null,null,null,null,null,null,443]
[442,null,null,null,null,null,null,null,null,null,null,null,null,null,null,null,null,null,null,null,null,null,444]
[443,null,null,null,null,null,null,null,null,null,null,null,null,null,null,null,null,null,null,null,null,null,445]
[444,null,null,null,null,null,null,null,null,null,null,null,null,null,null,null,null,null,null,null,null,null,446]
[445,null,null,null,null,null,null,null,null,null,null,null,null,null,null,null,null,null,null,null,null,null,447]
[446,null,null,null,null,null,null,null,null,null,null,null,null,null,null,null,null,null,null,null,null,null,448]
[447,null,null,null,null,null,null,null,null,null,null,null,null,null,null,null,null,null,null,null,null,null,449]
[448,null,null,null,null,null,null,null,null,null,null,null,null,null,null,null,null,null,null,null,null,null,450]
[449,null,null,null,null,null,null,null,null,null,null,null,null,null,null,null,null,null,null,null,null,null,451]
[450,null,null,null,null,null,null,null,null,null,null,null,null,null,null,null,null,null,null,null,null,null,452]
[451,null,null,null,null,null,null,null,null,null,null,null,null,null,null,null,null,null,null,null,null,null,453]
[452,null,null,null,null,null,null,null,null,null,null,null,null,null,null,null,null,null,null,null,null,null,454]
[454,null,null,null,null,null,null,null,null,null,null,null,null,null,null,null,null,null,null,null,null,null,455]
[455,null,null,null,null,null,null,null,null,null,null,null,null,null,null,null,null,null,null,null,null,null,456]
[456,null,null,null,null,null,null,null,null,null,null,null,null,null,null,null,null,null,null,null,null,null,457]
[457,null,null,null,null,null,null,null,null,null,null,null,null,null,null,null,null,null,null,null,null,null,458]
[458,null,null,null,null,null,null,null,null,null,null,null,null,null,null,null,null,null,null,null,null,null,459]
[459,null,null,null,null,null,null,null,null,null,null,null,null,null,null,null,null,null,null,null,null,null,460]
[460,null,null,null,null,null,null,null,null,null,null,null,null,null,null,null,null,null,null,null,null,null,461]
[461,null,null,null,null,null,null,null,null,null,null,null,null,null,null,null,null,null,null,null,null,null,462]
[462,null,null,null,null,null,null,null,null,null,null,null,null,null,null,null,null,null,null,null,null,null,463]
[463,null,null,null,null,null,null,null,null,null,null,null,null,null,null,null,null,null,null,null,null,null,464]
[464,null,null,null,null,null,null,null,null,null,null,null,null,null,null,null,null,null,null,null,null,null,465]
[465,null,null,null,null,null,null,null,null,null,null,null,null,null,null,null,null,null,null,null,null,null,466]
[466,null,null,null,null,null,null,null,null,null,null,null,null,null,null,null,null,null,null,null,null,null,467]
[467,null,null,null,null,null,null,null,null,null,null,null,null,null,null,null,null,null,null,null,null,null,468]
[468,null,null,null,null,null,null,null,null,null,null,null,null,null,null,null,null,null,null,null,null,null,469]
[469,null,null,null,null,null,null,null,null,null,null,null,null,null,null,null,null,null,null,null,null,null,470]
[470,null,null,null,null,null,null,null,null,null,null,null,null,null,null,null,null,null,null,null,null,null,471]
[471,null,null,null,null,null,null,null,null,null,null,null,null,null,null,null,null,null,null,null,null,null,472]
[472,null,null,null,null,null,null,null,null,null,null,null,null,null,null,null,null,null,null,null,null,null,473]
[473,null,null,null,null,null,null,null,null,null,null,null,null,null,null,null,null,null,null,null,null,null,474]
[474,null,null,null,null,null,null,null,null,null,null,null,null,null,null,null,null,null,null,null,null,null,475]
[475,null,null,null,null,null,null,null,null,null,null,null,null,null,null,null,null,null,null,null,null,null,476]
[476,null,null,null,null,null,null,null,null,null,null,null,null,null,null,null,null,null,null,null,null,null,477]
[477,null,null,null,null,null,null,null,null,null,null,null,null,null,null,null,null,null,null,null,null,null,478]
[478,null,null,null,null,null,null,null,null,null,null,null,null,null,null,null,null,null,null,null,null,null,479]
[479,null,null,null,null,null,null,null,null,null,null,null,null,null,null,null,null,null,null,null,null,null,480]
[480,null,null,null,null,null,null,null,null,null,null,null,null,null,null,null,null,null,null,null,null,null,481]
[481,null,null,null,null,null,null,null,null,null,null,null,null,null,null,null,null,null,null,null,null,null,482]
[482,null,null,null,null,null,null,null,null,null,null,null,null,null,null,null,null,null,null,null,null,null,483]
[483,null,null,null,null,null,null,null,null,null,null,null,null,null,null,null,null,null,null,null,null,null,484]
[484,null,null,null,null,null,null,null,null,null,null,null,null,null,null,null,null,null,null,null,null,null,485]
[485,null,null,null,null,null,null,null,null,null,null,null,null,null,null,null,null,null,null,null,null,null,486]
[486,null,null,null,null,null,null,null,null,null,null,null,null,null,null,null,null,null,null,null,null,null,487]
[487,null,null,null,null,null,null,null,null,null,null,null,null,null,null,null,null,null,null,null,null,null,488]
[488,null,null,null,null,null,null,null,null,null,null,null,null,null,null,null,null,null,null,null,null,null,489]
[489,null,null,null,null,null,null,null,null,null,null,null,null,null,null,null,null,null,null,null,null,null,490]
[490,null,null,null,null,null,null,null,null,null,null,null,null,null,null,null,null,null,null,null,null,null,491]
[491,null,null,null,null,null,null,null,null,null,null,null,null,null,null,null,null,null,null,null,null,null,492]
[492,null,null,null,null,null,null,null,null,null,null,null,null,null,null,null,null,null,null,null,null,null,493]
[493,null,null,null,null,null,null,null,null,null,null,null,null,null,null,null,null,null,null,null,null,null,494]
[515,null,null,null,null,null,null,null,null,null,null,null,null,null,null,null,null,null,null,null,null,null,495]
[516,null,null,null,null,null,null,null,null,null,null,null,null,null,null,null,null,null,null,null,null,null,496]
[517,null,null,null,null,null,null,null,null,null,null,null,null,null,null,null,null,null,null,null,null,null,497]
[518,null,null,null,null,null,null,null,null,null,null,null,null,null,null,null,null,null,null,null,null,null,498]
[519,null,null,null,null,null,null,null,null,null,null,null,null,null,null,null,null,null,null,null,null,null,499]
[520,null,null,null,null,null,null,null,null,null,null,null,null,null,null,null,null,null,null,null,null,null,500]
[521,null,null,null,null,null,null,null,null,null,null,null,null,null,null,null,null,null,null,null,null,null,501]
[522,null,null,null,null,null,null,null,null,null,null,null,null,null,null,null,null,null,null,null,null,null,502]
[523,null,null,null,null,null,null,null,null,null,null,null,null,null,null,null,null,null,null,null,null,null,503]
[524,null,null,null,null,null,null,null,null,null,null,null,null,null,null,null,null,null,null,null,null,null,504]
[525,null,null,null,null,null,null,null,null,null,null,null,null,null,null,null,null,null,null,null,null,null,505]
[526,null,null,null,null,null,null,null,null,null,null,null,null,null,null,null,null,null,null,null,null,null,506]
[527,null,null,null,null,null,null,null,null,null,null,null,null,null,null,null,null,null,null,null,null,null,507]
[528,null,null,null,null,null,null,null,null,null,null,null,null,null,null,null,null,null,null,null,null,null,508]
[529,null,null,null,null,null,null,null,null,null,null,null,null,null,null,null,null,null,null,null,null,null,509]
[530,null,null,null,null,null,null,null,null,null,null,null,null,null,null,null,null,null,null,null,null,null,510]
[531,null,null,null,null,null,null,null,null,null,null,null,null,null,null,null,null,null,null,null,null,null,511]
[532,null,null,null,null,null,null,null,null,null,null,null,null,null,null,null,null,null,null,null,null,null,512]
[533,null,null,null,null,null,null,null,null,null,null,null,null,null,null,null,null,null,null,null,null,null,513]
[534,null,null,null,null,null,null,null,null,null,null,null,null,null,null,null,null,null,null,null,null,null,514]
[535,null,null,null,null,null,null,null,null,null,null,null,null,null,null,null,null,null,null,null,null,null,515]
[536,null,null,null,null,null,null,null,null,null,null,null,null,null,null,null,null,null,null,null,null,null,516]
[537,null,null,null,null,null,null,null,null,null,null,null,null,null,null,null,null,null,null,null,null,null,517]
[538,null,null,null,null,null,null,null,null,null,null,null,null,null,null,null,null,null,null,null,null,null,518]
[539,null,null,null,null,null,null,null,null,null,null,null,null,null,null,null,null,null,null,null,null,null,519]
[540,null,null,null,null,null,null,null,null,null,null,null,null,null,null,null,null,null,null,null,null,null,520]
[541,null,null,null,null,null,null,null,null,null,null,null,null,null,null,null,null,null,null,null,null,null,521]
[542,null,null,null,null,null,null,null,null,null,null,null,null,null,null,null,null,null,null,null,null,null,522]
[543,null,null,null,null,null,null,null,null,null,null,null,null,null,null,null,null,null,null,null,null,null,523]
[544,null,null,null,null,null,null,null,null,null,null,null,null,null,null,null,null,null,null,null,null,null,524]
[545,null,null,null,null,null,null,null,null,null,null,null,null,null,null,null,null,null,null,null,null,null,525]
[546,null,null,null,null,null,null,null,null,null,null,null,null,null,null,null,null,null,null,null,null,null,526]
[547,null,null,null,null,null,null,null,null,null,null,null,null,null,null,null,null,null,null,null,null,null,527]
[548,null,null,null,null,null,null,null,null,null,null,null,null,null,null,null,null,null,null,null,null,null,528]
[549,null,null,null,null,null,null,null,null,null,null,null,null,null,null,null,null,null,null,null,null,null,529]
[550,null,null,null,null,null,null,null,null,null,null,null,null,null,null,null,null,null,null,null,null,null,530]
[551,null,null,null,null,null,null,null,null,null,null,null,null,null,null,null,null,null,null,null,null,null,531]
[552,null,null,null,null,null,null,null,null,null,null,null,null,null,null,null,null,null,null,null,null,null,532]
[553,null,null,null,null,null,null,null,null,null,null,null,null,null,null,null,null,null,null,null,null,null,533]
[554,null,null,null,null,null,null,null,null,null,null,null,null,null,null,null,null,null,null,null,null,null,534]
[555,null,null,null,null,null,null,null,null,null,null,null,null,null,null,null,null,null,null,null,null,null,535]
[556,null,null,null,null,null,null,null,null,null,null,null,null,null,null,null,null,null,null,null,null,null,536]
[557,null,null,null,null,null,null,null,null,null,null,null,null,null,null,null,null,null,null,null,null,null,537]
[558,null,null,null,null,null,null,null,null,null,null,null,null,null,null,null,null,null,null,null,null,null,538]
[559,null,null,null,null,null,null,null,null,null,null,null,null,null,null,null,null,null,null,null,null,null,539]
[560,null,null,null,null,null,null,null,null,null,null,null,null,null,null,null,null,null,null,null,null,null,540]
[561,null,null,null,null,null,null,null,null,null,null,null,null,null,null,null,null,null,null,null,null,null,541]
[562,null,null,null,null,null,null,null,null,null,null,null,null,null,null,null,null,null,null,null,null,null,542]
[563,null,null,null,null,null,null,null,null,null,null,null,null,null,null,null,null,null,null,null,null,null,543]
[564,null,null,null,null,null,null,null,null,null,null,null,null,null,null,null,null,null,null,null,null,null,544]
[565,null,null,null,null,null,null,null,null,null,null,null,null,null,null,null,null,null,null,null,null,null,545]
[566,null,null,null,null,null,null,null,null,null,null,null,null,null,null,null,null,null,null,null,null,null,546]
[567,null,null,null,null,null,null,null,null,null,null,null,null,null,null,null,null,null,null,null,null,null,547]
[568,null,null,null,null,null,null,null,null,null,null,null,null,null,null,null,null,null,null,null,null,null,548]
[569,null,null,null,null,null,null,null,null,null,null,null,null,null,null,null,null,null,null,null,null,null,549]
[570,null,null,null,null,null,null,null,null,null,null,null,null,null,null,null,null,null,null,null,null,null,550]
[571,null,null,null,null,null,null,null,null,null,null,null,null,null,null,null,null,null,null,null,null,null,551]
[572,null,null,null,null,null,null,null,null,null,null,null,null,null,null,null,null,null,null,null,null,null,552]
[573,null,null,null,null,null,null,null,null,null,null,null,null,null,null,null,null,null,null,null,null,null,553]
[574,null,null,null,null,null,null,null,null,null,null,null,null,null,null,null,null,null,null,null,null,null,554]
[575,null,null,null,null,null,null,null,null,null,null,null,null,null,null,null,null,null,null,null,null,null,555]
[576,null,null,null,null,null,null,null,null,null,null,null,null,null,null,null,null,null,null,null,null,null,556]
[577,null,null,null,null,null,null,null,null,null,null,null,null,null,null,null,null,null,null,null,null,null,557]
[578,null,null,null,null,null,null,null,null,null,null,null,null,null,null,null,null,null,null,null,null,null,558]
[579,null,null,null,null,null,null,null,null,null,null,null,null,null,null,null,null,null,null,null,null,null,559]
[580,null,null,null,null,null,null,null,null,null,null,null,null,null,null,null,null,null,null,null,null,null,560]
[581,null,null,null,null,null,null,null,null,null,null,null,null,null,null,null,null,null,null,null,null,null,561]
[582,null,null,null,null,null,null,null,null,null,null,null,null,null,null,null,null,null,null,null,null,null,562]
[583,null,null,null,null,null,null,null,null,null,null,null,null,null,null,null,null,null,null,null,null,null,563]
[584,null,null,null,null,null,null,null,null,null,null,null,null,null,null,null,null,null,null,null,null,null,564]
[585,null,null,null,null,null,null,null,null,null,null,null,null,null,null,null,null,null,null,null,null,null,565]
[586,null,null,null,null,null,null,null,null,null,null,null,null,null,null,null,null,null,null,null,null,null,566]
[587,null,null,null,null,null,null,null,null,null,null,null,null,null,null,null,null,null,null,null,null,null,567]
[588,null,null,null,null,null,null,null,null,null,null,null,null,null,null,null,null,null,null,null,null,null,568]
[589,null,null,null,null,null,null,null,null,null,null,null,null,null,null,null,null,null,null,null,null,null,569]
[590,null,null,null,null,null,null,null,null,null,null,null,null,null,null,null,null,null,null,null,null,null,570]
[591,null,null,null,null,null,null,null,null,null,null,null,null,null,null,null,null,null,null,null,null,null,571]
[592,null,null,null,null,null,null,null,null,null,null,null,null,null,null,null,null,null,null,null,null,null,572]
[593,null,null,null,null,null,null,null,null,null,null,null,null,null,null,null,null,null,null,null,null,null,573]
[594,null,null,null,null,null,null,null,null,null,null,null,null,null,null,null,null,null,null,null,null,null,574]
[595,null,null,null,null,null,null,null,null,null,null,null,null,null,null,null,null,null,null,null,null,null,575]
[596,null,null,null,null,null,null,null,null,null,null,null,null,null,null,null,null,null,null,null,null,null,576]
[597,null,null,null,null,null,null,null,null,null,null,null,null,null,null,null,null,null,null,null,null,null,577]
[598,null,null,null,null,null,null,null,null,null,null,null,null,null,null,null,null,null,null,null,null,null,578]
[599,null,null,null,null,null,null,null,null,null,null,null,null,null,null,null,null,null,null,null,null,null,579]
[600,null,null,null,null,null,null,null,null,null,null,null,null,null,null,null,null,null,null,null,null,null,580]
[601,null,null,null,null,null,null,null,null,null,null,null,null,null,null,null,null,null,null,null,null,null,581]
[602,null,null,null,null,null,null,null,null,null,null,null,null,null,null,null,null,null,null,null,null,null,582]
[603,null,null,null,null,null,null,null,null,null,null,null,null,null,null,null,null,null,null,null,null,null,583]
[604,null,null,null,null,null,null,null,null,null,null,null,null,null,null,null,null,null,null,null,null,null,584]
[605,null,null,null,null,null,null,null,null,null,null,null,null,null,null,null,null,null,null,null,null,null,585]
[606,null,null,null,null,null,null,null,null,null,null,null,null,null,null,null,null,null,null,null,null,null,586]
[607,null,null,null,null,null,null,null,null,null,null,null,null,null,null,null,null,null,null,null,null,null,587]
[608,null,null,null,null,null,null,null,null,null,null,null,null,null,null,null,null,null,null,null,null,null,588]
[609,null,null,null,null,null,null,null,null,null,null,null,null,null,null,null,null,null,null,null,null,null,589]
[610,null,null,null,null,null,null,null,null,null,null,null,null,null,null,null,null,null,null,null,null,null,590]
[611,null,null,null,null,null,null,null,null,null,null,null,null,null,null,null,null,null,null,null,null,null,591]
[612,null,null,null,null,null,null,null,null,null,null,null,null,null,null,null,null,null,null,null,null,null,592]
[613,null,null,null,null,null,null,null,null,null,null,null,null,null,null,null,null,null,null,null,null,null,593]
[614,null,null,null,null,null,null,null,null,null,null,null,null,null,null,null,null,null,null,null,null,null,594]
[615,null,null,null,null,null,null,null,null,null,null,null,null,null,null,null,null,null,null,null,null,null,595]
[616,null,null,null,null,null,null,null,null,null,null,null,null,null,null,null,null,null,null,null,null,null,596]
[617,null,null,null,null,null,null,null,null,null,null,null,null,null,null,null,null,null,null,null,null,null,597]
[618,null,null,null,null,null,null,null,null,null,null,null,null,null,null,null,null,null,null,null,null,null,598]
[619,null,null,null,null,null,null,null,null,null,null,null,null,null,null,null,null,null,null,null,null,null,599]
[620,null,null,null,null,null,null,null,null,null,null,null,null,null,null,null,null,null,null,null,null,null,600]
[621,null,null,null,null,null,null,null,null,null,null,null,null,null,null,null,null,null,null,null,null,null,601]
[622,null,null,null,null,null,null,null,null,null,null,null,null,null,null,null,null,null,null,null,null,null,602]
[623,null,null,null,null,null,null,null,null,null,null,null,null,null,null,null,null,null,null,null,null,null,603]
[624,null,null,null,null,null,null,null,null,null,null,null,null,null,null,null,null,null,null,null,null,null,604]
[625,null,null,null,null,null,null,null,null,null,null,null,null,null,null,null,null,null,null,null,null,null,605]
[626,null,null,null,null,null,null,null,null,null,null,null,null,null,null,null,null,null,null,null,null,null,606]
[627,null,null,null,null,null,null,null,null,null,null,null,null,null,null,null,null,null,null,null,null,null,607]
[628,null,null,null,null,null,null,null,null,null,null,null,null,null,null,null,null,null,null,null,null,null,608]
[629,null,null,null,null,null,null,null,null,null,null,null,null,null,null,null,null,null,null,null,null,null,609]
[630,null,null,null,null,null,null,null,null,null,null,null,null,null,null,null,null,null,null,null,null,null,610]
[631,null,null,null,null,null,null,null,null,null,null,null,null,null,null,null,null,null,null,null,null,null,611]
[632,null,null,null,null,null,null,null,null,null,null,null,null,null,null,null,null,null,null,null,null,null,612]
[633,null,null,null,null,null,null,null,null,null,null,null,null,null,null,null,null,null,null,null,null,null,613]
[634,null,null,null,null,null,null,null,null,null,null,null,null,null,null,null,null,null,null,null,null,null,614]
[635,null,null,null,null,null,null,null,null,null,null,null,null,null,null,null,null,null,null,null,null,null,615]
[636,null,null,null,null,null,null,null,null,null,null,null,null,null,null,null,null,null,null,null,null,null,616]
[637,null,null,null,null,null,null,null,null,null,null,null,null,null,null,null,null,null,null,null,null,null,617]
[638,null,null,null,null,null,null,null,null,null,null,null,null,null,null,null,null,null,null,null,null,null,618]
[639,null,null,null,null,null,null,null,null,null,null,null,null,null,null,null,null,null,null,null,null,null,619]
[640,null,null,null,null,null,null,null,null,null,null,null,null,null,null,null,null,null,null,null,null,null,620]
[641,null,null,null,null,null,null,null,null,null,null,null,null,null,null,null,null,null,null,null,null,null,621]
[642,null,null,null,null,null,null,null,null,null,null,null,null,null,null,null,null,null,null,null,null,null,622]
[643,null,null,null,null,null,null,null,null,null,null,null,null,null,null,null,null,null,null,null,null,null,623]
[644,null,null,null,null,null,null,null,null,null,null,null,null,null,null,null,null,null,null,null,null,null,624]
[645,null,null,null,null,null,null,null,null,null,null,null,null,null,null,null,null,null,null,null,null,null,625]
[646,null,null,null,null,null,null,null,null,null,null,null,null,null,null,null,null,null,null,null,null,null,626]
[647,null,null,null,null,null,null,null,null,null,null,null,null,null,null,null,null,null,null,null,null,null,627]
[648,null,null,null,null,null,null,null,null,null,null,null,null,null,null,null,null,null,null,null,null,null,628]
[649,null,null,null,null,null,null,null,null,null,null,null,null,null,null,null,null,null,null,null,null,null,629]
[650,null,null,null,null,null,null,null,null,null,null,null,null,null,null,null,null,null,null,null,null,null,630]
[651,null,null,null,null,null,null,null,null,null,null,null,null,null,null,null,null,null,null,null,null,null,631]
[652,null,null,null,null,null,null,null,null,null,null,null,null,null,null,null,null,null,null,null,null,null,632]
[653,null,null,null,null,null,null,null,null,null,null,null,null,null,null,null,null,null,null,null,null,null,633]
[654,null,null,null,null,null,null,null,null,null,null,null,null,null,null,null,null,null,null,null,null,null,634]
[655,null,null,null,null,null,null,null,null,null,null,null,null,null,null,null,null,null,null,null,null,null,635]
[656,null,null,null,null,null,null,null,null,null,null,null,null,null,null,null,null,null,null,null,null,null,636]
[657,null,null,null,null,null,null,null,null,null,null,null,null,null,null,null,null,null,null,null,null,null,637]
[658,null,null,null,null,null,null,null,null,null,null,null,null,null,null,null,null,null,null,null,null,null,638]
[659,null,null,null,null,null,null,null,null,null,null,null,null,null,null,null,null,null,null,null,null,null,639]
[660,null,null,null,null,null,null,null,null,null,null,null,null,null,null,null,null,null,null,null,null,null,640]
[661,null,null,null,null,null,null,null,null,null,null,null,null,null,null,null,null,null,null,null,null,null,641]
[662,null,null,null,null,null,null,null,null,null,null,null,null,null,null,null,null,null,null,null,null,null,642]
[663,null,null,null,null,null,null,null,null,null,null,null,null,null,null,null,null,null,null,null,null,null,643]
[664,null,null,null,null,null,null,null,null,null,null,null,null,null,null,null,null,null,null,null,null,null,644]
[665,null,null,null,null,null,null,null,null,null,null,null,null,null,null,null,null,null,null,null,null,null,645]
[666,null,null,null,null,null,null,null,null,null,null,null,null,null,null,null,null,null,null,null,null,null,646]
[667,null,null,null,null,null,null,null,null,null,null,null,null,null,null,null,null,null,null,null,null,null,647]
[668,null,null,null,null,null,null,null,null,null,null,null,null,null,null,null,null,null,null,null,null,null,648]
[669,null,null,null,null,null,null,null,null,null,null,null,null,null,null,null,null,null,null,null,null,null,649]
[670,null,null,null,null,null,null,null,null,null,null,null,null,null,null,null,null,null,null,null,null,null,650]
[671,null,null,null,null,null,null,null,null,null,null,null,null,null,null,null,null,null,null,null,null,null,651]
[672,null,null,null,null,null,null,null,null,null,null,null,null,null,null,null,null,null,null,null,null,null,652]
[673,null,null,null,null,null,null,null,null,null,null,null,null,null,null,null,null,null,null,null,null,null,653]
[674,null,null,null,null,null,null,null,null,null,null,null,null,null,null,null,null,null,null,null,null,null,654]
[675,null,null,null,null,null,null,null,null,null,null,null,null,null,null,null,null,null,null,null,null,null,655]
[676,null,null,null,null,null,null,null,null,null,null,null,null,null,null,null,null,null,null,null,null,null,656]
[677,null,null,null,null,null,null,null,null,null,null,null,null,null,null,null,null,null,null,null,null,null,657]
[678,null,null,null,null,null,null,null,null,null,null,null,null,null,null,null,null,null,null,null,null,null,658]
[679,null,null,null,null,null,null,null,null,null,null,null,null,null,null,null,null,null,null,null,null,null,659]
[680,null,null,null,null,null,null,null,null,null,null,null,null,null,null,null,null,null,null,null,null,null,660]
[681,null,null,null,null,null,null,null,null,null,null,null,null,null,null,null,null,null,null,null,null,null,661]
[682,null,null,null,null,null,null,null,null,null,null,null,null,null,null,null,null,null,null,null,null,null,662]
[683,null,null,null,null,null,null,null,null,null,null,null,null,null,null,null,null,null,null,null,null,null,663]
[684,null,null,null,null,null,null,null,null,null,null,null,null,null,null,null,null,null,null,null,null,null,664]
[685,null,null,null,null,null,null,null,null,null,null,null,null,null,null,null,null,null,null,null,null,null,665]
[686,null,null,null,null,null,null,null,null,null,null,null,null,null,null,null,null,null,null,null,null,null,666]
[687,null,null,null,null,null,null,null,null,null,null,null,null,null,null,null,null,null,null,null,null,null,667]
[688,null,null,null,null,null,null,null,null,null,null,null,null,null,null,null,null,null,null,null,null,null,668]
[689,null,null,null,null,null,null,null,null,null,null,null,null,null,null,null,null,null,null,null,null,null,669]
[690,null,null,null,null,null,null,null,null,null,null,null,null,null,null,null,null,null,null,null,null,null,670]
[691,null,null,null,null,null,null,null,null,null,null,null,null,null,null,null,null,null,null,null,null,null,671]
[692,null,null,null,null,null,null,null,null,null,null,null,null,null,null,null,null,null,null,null,null,null,672]
[693,null,null,null,null,null,null,null,null,null,null,null,null,null,null,null,null,null,null,null,null,null,673]
[694,null,null,null,null,null,null,null,null,null,null,null,null,null,null,null,null,null,null,null,null,null,674]
[695,null,null,null,null,null,null,null,null,null,null,null,null,null,null,null,null,null,null,null,null,null,675]
[696,null,null,null,null,null,null,null,null,null,null,null,null,null,null,null,null,null,null,null,null,null,676]
[697,null,null,null,null,null,null,null,null,null,null,null,null,null,null,null,null,null,null,null,null,null,677]
[698,null,null,null,null,null,null,null,null,null,null,null,null,null,null,null,null,null,null,null,null,null,678]
[699,null,null,null,null,null,null,null,null,null,null,null,null,null,null,null,null,null,null,null,null,null,679]
[700,null,null,null,null,null,null,null,null,null,null,null,null,null,null,null,null,null,null,null,null,null,680]
[701,null,null,null,null,null,null,null,null,null,null,null,null,null,null,null,null,null,null,null,null,null,681]
[702,null,null,null,null,null,null,null,null,null,null,null,null,null,null,null,null,null,null,null,null,null,682]
[703,null,null,null,null,null,null,null,null,null,null,null,null,null,null,null,null,null,null,null,null,null,683]
[704,null,null,null,null,null,null,null,null,null,null,null,null,null,null,null,null,null,null,null,null,null,684]
[705,null,null,null,null,null,null,null,null,null,null,null,null,null,null,null,null,null,null,null,null,null,685]
[706,null,null,null,null,null,null,null,null,null,null,null,null,null,null,null,null,null,null,null,null,null,686]
[707,null,null,null,null,null,null,null,null,null,null,null,null,null,null,null,null,null,null,null,null,null,687]
[708,null,null,null,null,null,null,null,null,null,null,null,null,null,null,null,null,null,null,null,null,null,688]
[709,null,null,null,null,null,null,null,null,null,null,null,null,null,null,null,null,null,null,null,null,null,689]
[710,null,null,null,null,null,null,null,null,null,null,null,null,null,null,null,null,null,null,null,null,null,690]
[711,null,null,null,null,null,null,null,null,null,null,null,null,null,null,null,null,null,null,null,null,null,691]
[712,null,null,null,null,null,null,null,null,null,null,null,null,null,null,null,null,null,null,null,null,null,692]
[713,null,null,null,null,null,null,null,null,null,null,null,null,null,null,null,null,null,null,null,null,null,693]
[714,null,null,null,null,null,null,null,null,null,null,null,null,null,null,null,null,null,null,null,null,null,694]
[715,null,null,null,null,null,null,null,null,null,null,null,null,null,null,null,null,null,null,null,null,null,695]
[716,null,null,null,null,null,null,null,null,null,null,null,null,null,null,null,null,null,null,null,null,null,696]
[717,null,null,null,null,null,null,null,null,null,null,null,null,null,null,null,null,null,null,null,null,null,697]
[718,null,null,null,null,null,null,null,null,null,null,null,null,null,null,null,null,null,null,null,null,null,698]
[719,null,null,null,null,null,null,null,null,null,null,null,null,null,null,null,null,null,null,null,null,null,699]
[720,null,null,null,null,null,null,null,null,null,null,null,null,null,null,null,null,null,null,null,null,null,700]
[721,null,null,null,null,null,null,null,null,null,null,null,null,null,null,null,null,null,null,null,null,null,701]
[722,null,null,null,null,null,null,null,null,null,null,null,null,null,null,null,null,null,null,null,null,null,702]
[723,null,null,null,null,null,null,null,null,null,null,null,null,null,null,null,null,null,null,null,null,null,703]
[724,null,null,null,null,null,null,null,null,null,null,null,null,null,null,null,null,null,null,null,null,null,704]
[725,null,null,null,null,null,null,null,null,null,null,null,null,null,null,null,null,null,null,null,null,null,705]
[726,null,null,null,null,null,null,null,null,null,null,null,null,null,null,null,null,null,null,null,null,null,706]
[727,null,null,null,null,null,null,null,null,null,null,null,null,null,null,null,null,null,null,null,null,null,707]
[728,null,null,null,null,null,null,null,null,null,null,null,null,null,null,null,null,null,null,null,null,null,708]
[729,null,null,null,null,null,null,null,null,null,null,null,null,null,null,null,null,null,null,null,null,null,709]
[730,null,null,null,null,null,null,null,null,null,null,null,null,null,null,null,null,null,null,null,null,null,710]
[731,null,null,null,null,null,null,null,null,null,null,null,null,null,null,null,null,null,null,null,null,null,711]
[732,null,null,null,null,null,null,null,null,null,null,null,null,null,null,null,null,null,null,null,null,null,712]
[733,null,null,null,null,null,null,null,null,null,null,null,null,null,null,null,null,null,null,null,null,null,713]
[734,null,null,null,null,null,null,null,null,null,null,null,null,null,null,null,null,null,null,null,null,null,714]
[735,null,null,null,null,null,null,null,null,null,null,null,null,null,null,null,null,null,null,null,null,null,715]
[736,null,null,null,null,null,null,null,null,null,null,null,null,null,null,null,null,null,null,null,null,null,716]
[737,null,null,null,null,null,null,null,null,null,null,null,null,null,null,null,null,null,null,null,null,null,717]
[738,null,null,null,null,null,null,null,null,null,null,null,null,null,null,null,null,null,null,null,null,null,718]
[739,null,null,null,null,null,null,null,null,null,null,null,null,null,null,null,null,null,null,null,null,null,719]
[740,null,null,null,null,null,null,null,null,null,null,null,null,null,null,null,null,null,null,null,null,null,720]
[741,null,null,null,null,null,null,null,null,null,null,null,null,null,null,null,null,null,null,null,null,null,721]
[742,null,null,null,null,null,null,null,null,null,null,null,null,null,null,null,null,null,null,null,null,null,722]
[743,null,null,null,null,null,null,null,null,null,null,null,null,null,null,null,null,null,null,null,null,null,723]
[744,null,null,null,null,null,null,null,null,null,null,null,null,null,null,null,null,null,null,null,null,null,724]
[745,null,null,null,null,null,null,null,null,null,null,null,null,null,null,null,null,null,null,null,null,null,725]
[746,null,null,null,null,null,null,null,null,null,null,null,null,null,null,null,null,null,null,null,null,null,726]
[747,null,null,null,null,null,null,null,null,null,null,null,null,null,null,null,null,null,null,null,null,null,727]
[748,null,null,null,null,null,null,null,null,null,null,null,null,null,null,null,null,null,null,null,null,null,728]
[749,null,null,null,null,null,null,null,null,null,null,null,null,null,null,null,null,null,null,null,null,null,729]
[750,null,null,null,null,null,null,null,null,null,null,null,null,null,null,null,null,null,null,null,null,null,730]
[751,null,null,null,null,null,null,null,null,null,null,null,null,null,null,null,null,null,null,null,null,null,731]
[752,null,null,null,null,null,null,null,null,null,null,null,null,null,null,null,null,null,null,null,null,null,732]
[753,null,null,null,null,null,null,null,null,null,null,null,null,null,null,null,null,null,null,null,null,null,733]
[754,null,null,null,null,null,null,null,null,null,null,null,null,null,null,null,null,null,null,null,null,null,734]
[755,null,null,null,null,null,null,null,null,null,null,null,null,null,null,null,null,null,null,null,null,null,735]
[756,null,null,null,null,null,null,null,null,null,null,null,null,null,null,null,null,null,null,null,null,null,736]
[757,null,null,null,null,null,null,null,null,null,null,null,null,null,null,null,null,null,null,null,null,null,737]
[758,null,null,null,null,null,null,null,null,null,null,null,null,null,null,null,null,null,null,null,null,null,738]
[759,null,null,null,null,null,null,null,null,null,null,null,null,null,null,null,null,null,null,null,null,null,739]
[760,null,null,null,null,null,null,null,null,null,null,null,null,null,null,null,null,null,null,null,null,null,740]
[761,null,null,null,null,null,null,null,null,null,null,null,null,null,null,null,null,null,null,null,null,null,741]
[762,null,null,null,null,null,null,null,null,null,null,null,null,null,null,null,null,null,null,null,null,null,742]
[763,null,null,null,null,null,null,null,null,null,null,null,null,null,null,null,null,null,null,null,null,null,743]
[764,null,null,null,null,null,null,null,null,null,null,null,null,null,null,null,null,null,null,null,null,null,744]
[765,null,null,null,null,null,null,null,null,null,null,null,null,null,null,null,null,null,null,null,null,null,745]
[766,null,null,null,null,null,null,null,null,null,null,null,null,null,null,null,null,null,null,null,null,null,746]
[767,null,null,null,null,null,null,null,null,null,null,null,null,null,null,null,null,null,null,null,null,null,747]
[768,null,null,null,null,null,null,null,null,null,null,null,null,null,null,null,null,null,null,null,null,null,748]
[769,null,null,null,null,null,null,null,null,null,null,null,null,null,null,null,null,null,null,null,null,null,749]
[770,null,null,null,null,null,null,null,null,null,null,null,null,null,null,null,null,null,null,null,null,null,750]
[771,null,null,null,null,null,null,null,null,null,null,null,null,null,null,null,null,null,null,null,null,null,751]
[772,null,null,null,null,null,null,null,null,null,null,null,null,null,null,null,null,null,null,null,null,null,752]
[773,null,null,null,null,null,null,null,null,null,null,null,null,null,null,null,null,null,null,null,null,null,753]
[774,null,null,null,null,null,null,null,null,null,null,null,null,null,null,null,null,null,null,null,null,null,754]
[775,null,null,null,null,null,null,null,null,null,null,null,null,null,null,null,null,null,null,null,null,null,755]
[776,null,null,null,null,null,null,null,null,null,null,null,null,null,null,null,null,null,null,null,null,null,756]
[777,null,null,null,null,null,null,null,null,null,null,null,null,null,null,null,null,null,null,null,null,null,757]
[778,null,null,null,null,null,null,null,null,null,null,null,null,null,null,null,null,null,null,null,null,null,758]
[779,null,null,null,null,null,null,null,null,null,null,null,null,null,null,null,null,null,null,null,null,null,759]
[780,null,null,null,null,null,null,null,null,null,null,null,null,null,null,null,null,null,null,null,null,null,760]
[781,null,null,null,null,null,null,null,null,null,null,null,null,null,null,null,null,null,null,null,null,null,761]
[782,null,null,null,null,null,null,null,null,null,null,null,null,null,null,null,null,null,null,null,null,null,762]
[783,null,null,null,null,null,null,null,null,null,null,null,null,null,null,null,null,null,null,null,null,null,763]
[784,null,null,null,null,null,null,null,null,null,null,null,null,null,null,null,null,null,null,null,null,null,764]
[785,null,null,null,null,null,null,null,null,null,null,null,null,null,null,null,null,null,null,null,null,null,765]
[786,null,null,null,null,null,null,null,null,null,null,null,null,null,null,null,null,null,null,null,null,null,766]
[787,null,null,null,null,null,null,null,null,null,null,null,null,null,null,null,null,null,null,null,null,null,767]
[788,null,null,null,null,null,null,null,null,null,null,null,null,null,null,null,null,null,null,null,null,null,768]
[789,null,null,null,null,null,null,null,null,null,null,null,null,null,null,null,null,null,null,null,null,null,769]
[790,null,null,null,null,null,null,null,null,null,null,null,null,null,null,null,null,null,null,null,null,null,770]
[791,null,null,null,null,null,null,null,null,null,null,null,null,null,null,null,null,null,null,null,null,null,771]
[792,null,null,null,null,null,null,null,null,null,null,null,null,null,null,null,null,null,null,null,null,null,772]
[793,null,null,null,null,null,null,null,null,null,null,null,null,null,null,null,null,null,null,null,null,null,773]
[794,null,null,null,null,null,null,null,null,null,null,null,null,null,null,null,null,null,null,null,null,null,774]
[795,null,null,null,null,null,null,null,null,null,null,null,null,null,null,null,null,null,null,null,null,null,775]
[796,null,null,null,null,null,null,null,null,null,null,null,null,null,null,null,null,null,null,null,null,null,776]
[797,null,null,null,null,null,null,null,null,null,null,null,null,null,null,null,null,null,null,null,null,null,777]
[798,null,null,null,null,null,null,null,null,null,null,null,null,null,null,null,null,null,null,null,null,null,778]
[799,null,null,null,null,null,null,null,null,null,null,null,null,null,null,null,null,null,null,null,null,null,779]
[800,null,null,null,null,null,null,null,null,null,null,null,null,null,null,null,null,null,null,null,null,null,780]
[801,null,null,null,null,null,null,null,null,null,null,null,null,null,null,null,null,null,null,null,null,null,781]
[802,null,null,null,null,null,null,null,null,null,null,null,null,null,null,null,null,null,null,null,null,null,782]
[803,null,null,null,null,null,null,null,null,null,null,null,null,null,null,null,null,null,null,null,null,null,783]
[804,null,null,null,null,null,null,null,null,null,null,null,null,null,null,null,null,null,null,null,null,null,784]
[805,null,null,null,null,null,null,null,null,null,null,null,null,null,null,null,null,null,null,null,null,null,785]
[806,null,null,null,null,null,null,null,null,null,null,null,null,null,null,null,null,null,null,null,null,null,786]
[807,null,null,null,null,null,null,null,null,null,null,null,null,null,null,null,null,null,null,null,null,null,787]
[808,null,null,null,null,null,null,null,null,null,null,null,null,null,null,null,null,null,null,null,null,null,788]
[809,null,null,null,null,null,null,null,null,null,null,null,null,null,null,null,null,null,null,null,null,null,789]
[810,null,null,null,null,null,null,null,null,null,null,null,null,null,null,null,null,null,null,null,null,null,790]
[811,null,null,null,null,null,null,null,null,null,null,null,null,null,null,null,null,null,null,null,null,null,791]
[812,null,null,null,null,null,null,null,null,null,null,null,null,null,null,null,null,null,null,null,null,null,792]
[813,null,null,null,null,null,null,null,null,null,null,null,null,null,null,null,null,null,null,null,null,null,793]
[814,null,null,null,null,null,null,null,null,null,null,null,null,null,null,null,null,null,null,null,null,null,794]
[815,null,null,null,null,null,null,null,null,null,null,null,null,null,null,null,null,null,null,null,null,null,795]
[816,null,null,null,null,null,null,null,null,null,null,null,null,null,null,null,null,null,null,null,null,null,796]
[817,null,null,null,null,null,null,null,null,null,null,null,null,null,null,null,null,null,null,null,null,null,797]
[818,null,null,null,null,null,null,null,null,null,null,null,null,null,null,null,null,null,null,null,null,null,798]
[819,null,null,null,null,null,null,null,null,null,null,null,null,null,null,null,null,null,null,null,null,null,799]
[820,null,null,null,null,null,null,null,null,null,null,null,null,null,null,null,null,null,null,null,null,null,800]
[821,null,null,null,null,null,null,null,null,null,null,null,null,null,null,null,null,null,null,null,null,null,801]
[822,null,null,null,null,null,null,null,null,null,null,null,null,null,null,null,null,null,null,null,null,null,802]
[823,null,null,null,null,null,null,null,null,null,null,null,null,null,null,null,null,null,null,null,null,null,803]
[824,null,null,null,null,null,null,null,null,null,null,null,null,null,null,null,null,null,null,null,null,null,804]
[825,null,null,null,null,null,null,null,null,null,null,null,null,null,null,null,null,null,null,null,null,null,805]
[826,null,null,null,null,null,null,null,null,null,null,null,null,null,null,null,null,null,null,null,null,null,806]
[827,null,null,null,null,null,null,null,null,null,null,null,null,null,null,null,null,null,null,null,null,null,807]
[828,null,null,null,null,null,null,null,null,null,null,null,null,null,null,null,null,null,null,null,null,null,808]
[829,null,null,null,null,null,null,null,null,null,null,null,null,null,null,null,null,null,null,null,null,null,809]
[830,null,null,null,null,null,null,null,null,null,null,null,null,null,null,null,null,null,null,null,null,null,810]
[831,null,null,null,null,null,null,null,null,null,null,null,null,null,null,null,null,null,null,null,null,null,811]
[832,null,null,null,null,null,null,null,null,null,null,null,null,null,null,null,null,null,null,null,null,null,812]
[833,null,null,null,null,null,null,null,null,null,null,null,null,null,null,null,null,null,null,null,null,null,813]
[834,null,null,null,null,null,null,null,null,null,null,null,null,null,null,null,null,null,null,null,null,null,814]
[835,null,null,null,null,null,null,null,null,null,null,null,null,null,null,null,null,null,null,null,null,null,815]
[836,null,null,null,null,null,null,null,null,null,null,null,null,null,null,null,null,null,null,null,null,null,816]
[837,null,null,null,null,null,null,null,null,null,null,null,null,null,null,null,null,null,null,null,null,null,817]
[838,null,null,null,null,null,null,null,null,null,null,null,null,null,null,null,null,null,null,null,null,null,818]
[839,null,null,null,null,null,null,null,null,null,null,null,null,null,null,null,null,null,null,null,null,null,819]
[840,null,null,null,null,null,null,null,null,null,null,null,null,null,null,null,null,null,null,null,null,null,820]
[841,null,null,null,null,null,null,null,null,null,null,null,null,null,null,null,null,null,null,null,null,null,821]
[842,null,null,null,null,null,null,null,null,null,null,null,null,null,null,null,null,null,null,null,null,null,822]
[843,null,null,null,null,null,null,null,null,null,null,null,null,null,null,null,null,null,null,null,null,null,823]
[844,null,null,null,null,null,null,null,null,null,null,null,null,null,null,null,null,null,null,null,null,null,824]
[845,null,null,null,null,null,null,null,null,null,null,null,null,null,null,null,null,null,null,null,null,null,825]
[846,null,null,null,null,null,null,null,null,null,null,null,null,null,null,null,null,null,null,null,null,null,826]
[847,null,null,null,null,null,null,null,null,null,null,null,null,null,null,null,null,null,null,null,null,null,827]
[848,null,null,null,null,null,null,null,null,null,null,null,null,null,null,null,null,null,null,null,null,null,828]
[849,null,null,null,null,null,null,null,null,null,null,null,null,null,null,null,null,null,null,null,null,null,829]
[850,null,null,null,null,null,null,null,null,null,null,null,null,null,null,null,null,null,null,null,null,null,830]
[851,null,null,null,null,null,null,null,null,null,null,null,null,null,null,null,null,null,null,null,null,null,831]
[852,null,null,null,null,null,null,null,null,null,null,null,null,null,null,null,null,null,null,null,null,null,832]
[853,null,null,null,null,null,null,null,null,null,null,null,null,null,null,null,null,null,null,null,null,null,833]
[854,null,null,null,null,null,null,null,null,null,null,null,null,null,null,null,null,null,null,null,null,null,834]
[855,null,null,null,null,null,null,null,null,null,null,null,null,null,null,null,null,null,null,null,null,null,835]
[856,null,null,null,null,null,null,null,null,null,null,null,null,null,null,null,null,null,null,null,null,null,836]
[857,null,null,null,null,null,null,null,null,null,null,null,null,null,null,null,null,null,null,null,null,null,837]
[858,null,null,null,null,null,null,null,null,null,null,null,null,null,null,null,null,null,null,null,null,null,838]
[859,null,null,null,null,null,null,null,null,null,null,null,null,null,null,null,null,null,null,null,null,null,839]
[860,null,null,null,null,null,null,null,null,null,null,null,null,null,null,null,null,null,null,null,null,null,840]
[861,null,null,null,null,null,null,null,null,null,null,null,null,null,null,null,null,null,null,null,null,null,841]
[862,null,null,null,null,null,null,null,null,null,null,null,null,null,null,null,null,null,null,null,null,null,842]
[863,null,null,null,null,null,null,null,null,null,null,null,null,null,null,null,null,null,null,null,null,null,843]
[864,null,null,null,null,null,null,null,null,null,null,null,null,null,null,null,null,null,null,null,null,null,844]
[865,null,null,null,null,null,null,null,null,null,null,null,null,null,null,null,null,null,null,null,null,null,845]
[866,null,null,null,null,null,null,null,null,null,null,null,null,null,null,null,null,null,null,null,null,null,846]
[867,null,null,null,null,null,null,null,null,null,null,null,null,null,null,null,null,null,null,null,null,null,847]
[868,null,null,null,null,null,null,null,null,null,null,null,null,null,null,null,null,null,null,null,null,null,848]
[869,null,null,null,null,null,null,null,null,null,null,null,null,null,null,null,null,null,null,null,null,null,849]
[870,null,null,null,null,null,null,null,null,null,null,null,null,null,null,null,null,null,null,null,null,null,850]
[871,null,null,null,null,null,null,null,null,null,null,null,null,null,null,null,null,null,null,null,null,null,851]
[872,null,null,null,null,null,null,null,null,null,null,null,null,null,null,null,null,null,null,null,null,null,852]
[873,null,null,null,null,null,null,null,null,null,null,null,null,null,null,null,null,null,null,null,null,null,853]
[874,null,null,null,null,null,null,null,null,null,null,null,null,null,null,null,null,null,null,null,null,null,854]
[875,null,null,null,null,null,null,null,null,null,null,null,null,null,null,null,null,null,null,null,null,null,855]
[876,null,null,null,null,null,null,null,null,null,null,null,null,null,null,null,null,null,null,null,null,null,856]
[877,null,null,null,null,null,null,null,null,null,null,null,null,null,null,null,null,null,null,null,null,null,857]
[878,null,null,null,null,null,null,null,null,null,null,null,null,null,null,null,null,null,null,null,null,null,858]
[879,null,null,null,null,null,null,null,null,null,null,null,null,null,null,null,null,null,null,null,null,null,859]
[880,null,null,null,null,null,null,null,null,null,null,null,null,null,null,null,null,null,null,null,null,null,860]
[881,null,null,null,null,null,null,null,null,null,null,null,null,null,null,null,null,null,null,null,null,null,861]
[882,null,null,null,null,null,null,null,null,null,null,null,null,null,null,null,null,null,null,null,null,null,862]
[883,null,null,null,null,null,null,null,null,null,null,null,null,null,null,null,null,null,null,null,null,null,863]
[884,null,null,null,null,null,null,null,null,null,null,null,null,null,null,null,null,null,null,null,null,null,864]
[885,null,null,null,null,null,null,null,null,null,null,null,null,null,null,null,null,null,null,null,null,null,865]
[886,null,null,null,null,null,null,null,null,null,null,null,null,null,null,null,null,null,null,null,null,null,866]
[887,null,null,null,null,null,null,null,null,null,null,null,null,null,null,null,null,null,null,null,null,null,867]
[888,null,null,null,null,null,null,null,null,null,null,null,null,null,null,null,null,null,null,null,null,null,868]
[889,null,null,null,null,null,null,null,null,null,null,null,null,null,null,null,null,null,null,null,null,null,869]
[890,null,null,null,null,null,null,null,null,null,null,null,null,null,null,null,null,null,null,null,null,null,870]
[891,null,null,null,null,null,null,null,null,null,null,null,null,null,null,null,null,null,null,null,null,null,871]
[892,null,null,null,null,null,null,null,null,null,null,null,null,null,null,null,null,null,null,null,null,null,872]
[893,null,null,null,null,null,null,null,null,null,null,null,null,null,null,null,null,null,null,null,null,null,873]
[894,null,null,null,null,null,null,null,null,null,null,null,null,null,null,null,null,null,null,null,null,null,874]
[895,null,null,null,null,null,null,null,null,null,null,null,null,null,null,null,null,null,null,null,null,null,875]
[896,null,null,null,null,null,null,null,null,null,null,null,null,null,null,null,null,null,null,null,null,null,876]
[897,null,null,null,null,null,null,null,null,null,null,null,null,null,null,null,null,null,null,null,null,null,877]
[898,null,null,null,null,null,null,null,null,null,null,null,null,null,null,null,null,null,null,null,null,null,878]
[899,null,null,null,null,null,null,null,null,null,null,null,null,null,null,null,null,null,null,null,null,null,879]
[900,null,null,null,null,null,null,null,null,null,null,null,null,null,null,null,null,null,null,null,null,null,880]
[901,null,null,null,null,null,null,null,null,null,null,null,null,null,null,null,null,null,null,null,null,null,881]
[902,null,null,null,null,null,null,null,null,null,null,null,null,null,null,null,null,null,null,null,null,null,882]
[903,null,null,null,null,null,null,null,null,null,null,null,null,null,null,null,null,null,null,null,null,null,883]
[904,null,null,null,null,null,null,null,null,null,null,null,null,null,null,null,null,null,null,null,null,null,884]
[905,null,null,null,null,null,null,null,null,null,null,null,null,null,null,null,null,null,null,null,null,null,885]
[906,null,null,null,null,null,null,null,null,null,null,null,null,null,null,null,null,null,null,null,null,null,886]
[907,null,null,null,null,null,null,null,null,null,null,null,null,null,null,null,null,null,null,null,null,null,887]
[908,null,null,null,null,null,null,null,null,null,null,null,null,null,null,null,null,null,null,null,null,null,888]
[909,null,null,null,null,null,null,null,null,null,null,null,null,null,null,null,null,null,null,null,null,null,889]
[910,null,null,null,null,null,null,null,null,null,null,null,null,null,null,null,null,null,null,null,null,null,890]
[911,null,null,null,null,null,null,null,null,null,null,null,null,null,null,null,null,null,null,null,null,null,891]
[912,null,null,null,null,null,null,null,null,null,null,null,null,null,null,null,null,null,null,null,null,null,892]
[913,null,null,null,null,null,null,null,null,null,null,null,null,null,null,null,null,null,null,null,null,null,893]
[914,null,null,null,null,null,null,null,null,null,null,null,null,null,null,null,null,null,null,null,null,null,894]
[915,null,null,null,null,null,null,null,null,null,null,null,null,null,null,null,null,null,null,null,null,null,895]
[916,null,null,null,null,null,null,null,null,null,null,null,null,null,null,null,null,null,null,null,null,null,896]
[917,null,null,null,null,null,null,null,null,null,null,null,null,null,null,null,null,null,null,null,null,null,897]
[918,null,null,null,null,null,null,null,null,null,null,null,null,null,null,null,null,null,null,null,null,null,898]
[919,null,null,null,null,null,null,null,null,null,null,null,null,null,null,null,null,null,null,null,null,null,899]
[920,null,null,null,null,null,null,null,null,null,null,null,null,null,null,null,null,null,null,null,null,null,900]
[921,null,null,null,null,null,null,null,null,null,null,null,null,null,null,null,null,null,null,null,null,null,901]
[922,null,null,null,null,null,null,null,null,null,null,null,null,null,null,null,null,null,null,null,null,null,902]
[923,null,null,null,null,null,null,null,null,null,null,null,null,null,null,null,null,null,null,null,null,null,903]
[924,null,null,null,null,null,null,null,null,null,null,null,null,null,null,null,null,null,null,null,null,null,904]
[925,null,null,null,null,null,null,null,null,null,null,null,null,null,null,null,null,null,null,null,null,null,905]
[926,null,null,null,null,null,null,null,null,null,null,null,null,null,null,null,null,null,null,null,null,null,906]
[927,null,null,null,null,null,null,null,null,null,null,null,null,null,null,null,null,null,null,null,null,null,907]
[928,null,null,null,null,null,null,null,null,null,null,null,null,null,null,null,null,null,null,null,null,null,908]
[929,null,null,null,null,null,null,null,null,null,null,null,null,null,null,null,null,null,null,null,null,null,909]
[930,null,null,null,null,null,null,null,null,null,null,null,null,null,null,null,null,null,null,null,null,null,910]
[931,null,null,null,null,null,null,null,null,null,null,null,null,null,null,null,null,null,null,null,null,null,911]
[932,null,null,null,null,null,null,null,null,null,null,null,null,null,null,null,null,null,null,null,null,null,912]
[933,null,null,null,null,null,null,null,null,null,null,null,null,null,null,null,null,null,null,null,null,null,913]
[934,null,null,null,null,null,null,null,null,null,null,null,null,null,null,null,null,null,null,null,null,null,914]
[935,null,null,null,null,null,null,null,null,null,null,null,null,null,null,null,null,null,null,null,null,null,915]
[936,null,null,null,null,null,null,null,null,null,null,null,null,null,null,null,null,null,null,null,null,null,916]
[937,null,null,null,null,null,null,null,null,null,null,null,null,null,null,null,null,null,null,null,null,null,917]
[938,null,null,null,null,null,null,null,null,null,null,null,null,null,null,null,null,null,null,null,null,null,918]
[939,null,null,null,null,null,null,null,null,null,null,null,null,null,null,null,null,null,null,null,null,null,919]
[940,null,null,null,null,null,null,null,null,null,null,null,null,null,null,null,null,null,null,null,null,null,920]
[941,null,null,null,null,null,null,null,null,null,null,null,null,null,null,null,null,null,null,null,null,null,921]
[942,null,null,null,null,null,null,null,null,null,null,null,null,null,null,null,null,null,null,null,null,null,922]
[943,null,null,null,null,null,null,null,null,null,null,null,null,null,null,null,null,null,null,null,null,null,923]
[944,null,null,null,null,null,null,null,null,null,null,null,null,null,null,null,null,null,null,null,null,null,924]
[945,null,null,null,null,null,null,null,null,null,null,null,null,null,null,null,null,null,null,null,null,null,925]
[946,null,null,null,null,null,null,null,null,null,null,null,null,null,null,null,null,null,null,null,null,null,926]
[947,null,null,null,null,null,null,null,null,null,null,null,null,null,null,null,null,null,null,null,null,null,927]
[948,null,null,null,null,null,null,null,null,null,null,null,null,null,null,null,null,null,null,null,null,null,928]
[949,null,null,null,null,null,null,null,null,null,null,null,null,null,null,null,null,null,null,null,null,null,929]
[950,null,null,null,null,null,null,null,null,null,null,null,null,null,null,null,null,null,null,null,null,null,930]
[951,null,null,null,null,null,null,null,null,null,null,null,null,null,null,null,null,null,null,null,null,null,931]
[952,null,null,null,null,null,null,null,null,null,null,null,null,null,null,null,null,null,null,null,null,null,932]
[953,null,null,null,null,null,null,null,null,null,null,null,null,null,null,null,null,null,null,null,null,null,933]
[954,null,null,null,null,null,null,null,null,null,null,null,null,null,null,null,null,null,null,null,null,null,934]
[955,null,null,null,null,null,null,null,null,null,null,null,null,null,null,null,null,null,null,null,null,null,935]
[956,null,null,null,null,null,null,null,null,null,null,null,null,null,null,null,null,null,null,null,null,null,936]
[957,null,null,null,null,null,null,null,null,null,null,null,null,null,null,null,null,null,null,null,null,null,937]
[958,null,null,null,null,null,null,null,null,null,null,null,null,null,null,null,null,null,null,null,null,null,938]
[959,null,null,null,null,null,null,null,null,null,null,null,null,null,null,null,null,null,null,null,null,null,939]
[960,null,null,null,null,null,null,null,null,null,null,null,null,null,null,null,null,null,null,null,null,null,940]
[961,null,null,null,null,null,null,null,null,null,null,null,null,null,null,null,null,null,null,null,null,null,941]
[962,null,null,null,null,null,null,null,null,null,null,null,null,null,null,null,null,null,null,null,null,null,942]
[963,null,null,null,null,null,null,null,null,null,null,null,null,null,null,null,null,null,null,null,null,null,943]
[964,null,null,null,null,null,null,null,null,null,null,null,null,null,null,null,null,null,null,null,null,null,944]
[965,null,null,null,null,null,null,null,null,null,null,null,null,null,null,null,null,null,null,null,null,null,945]
[966,null,null,null,null,null,null,null,null,null,null,null,null,null,null,null,null,null,null,null,null,null,946]
[967,null,null,null,null,null,null,null,null,null,null,null,null,null,null,null,null,null,null,null,null,null,947]
[968,null,null,null,null,null,null,null,null,null,null,null,null,null,null,null,null,null,null,null,null,null,948]
[969,null,null,null,null,null,null,null,null,null,null,null,null,null,null,null,null,null,null,null,null,null,949]
[970,null,null,null,null,null,null,null,null,null,null,null,null,null,null,null,null,null,null,null,null,null,950]
[971,null,null,null,null,null,null,null,null,null,null,null,null,null,null,null,null,null,null,null,null,null,951]
[972,null,null,null,null,null,null,null,null,null,null,null,null,null,null,null,null,null,null,null,null,null,952]
[973,null,null,null,null,null,null,null,null,null,null,null,null,null,null,null,null,null,null,null,null,null,953]
[974,null,null,null,null,null,null,null,null,null,null,null,null,null,null,null,null,null,null,null,null,null,954]
[975,null,null,null,null,null,null,null,null,null,null,null,null,null,null,null,null,null,null,null,null,null,955]
[976,null,null,null,null,null,null,null,null,null,null,null,null,null,null,null,null,null,null,null,null,null,956]
[977,null,null,null,null,null,null,null,null,null,null,null,null,null,null,null,null,null,null,null,null,null,957]
[978,null,null,null,null,null,null,null,null,null,null,null,null,null,null,null,null,null,null,null,null,null,958]
[979,null,null,null,null,null,null,null,null,null,null,null,null,null,null,null,null,null,null,null,null,null,959]
[980,null,null,null,null,null,null,null,null,null,null,null,null,null,null,null,null,null,null,null,null,null,960]
[981,null,null,null,null,null,null,null,null,null,null,null,null,null,null,null,null,null,null,null,null,null,961]
[982,null,null,null,null,null,null,null,null,null,null,null,null,null,null,null,null,null,null,null,null,null,962]
[983,null,null,null,null,null,null,null,null,null,null,null,null,null,null,null,null,null,null,null,null,null,963]
[984,null,null,null,null,null,null,null,null,null,null,null,null,null,null,null,null,null,null,null,null,null,964]
[985,null,null,null,null,null,null,null,null,null,null,null,null,null,null,null,null,null,null,null,null,null,965]
[986,null,null,null,null,null,null,null,null,null,null,null,null,null,null,null,null,null,null,null,null,null,966]
[987,null,null,null,null,null,null,null,null,null,null,null,null,null,null,null,null,null,null,null,null,null,967]
[988,null,null,null,null,null,null,null,null,null,null,null,null,null,null,null,null,null,null,null,null,null,968]
[989,null,null,null,null,null,null,null,null,null,null,null,null,null,null,null,null,null,null,null,null,null,969]
[990,null,null,null,null,null,null,null,null,null,null,null,null,null,null,null,null,null,null,null,null,null,970]
[991,null,null,null,null,null,null,null,null,null,null,null,null,null,null,null,null,null,null,null,null,null,971]
[992,null,null,null,null,null,null,null,null,null,null,null,null,null,null,null,null,null,null,null,null,null,972]
[993,null,null,null,null,null,null,null,null,null,null,null,null,null,null,null,null,null,null,null,null,null,973]
[994,null,null,null,null,null,null,null,null,null,null,null,null,null,null,null,null,null,null,null,null,null,974]
[995,null,null,null,null,null,null,null,null,null,null,null,null,null,null,null,null,null,null,null,null,null,975]
[996,null,null,null,null,null,null,null,null,null,null,null,null,null,null,null,null,null,null,null,null,null,976]
[997,null,null,null,null,null,null,null,null,null,null,null,null,null,null,null,null,null,null,null,null,null,977]
[998,null,null,null,null,null,null,null,null,null,null,null,null,null,null,null,null,null,null,null,null,null,978]
[999,null,null,null,null,null,null,null,null,null,null,null,null,null,null,null,null,null,null,null,null,null,979]
[1000,null,null,null,null,null,null,null,null,null,null,null,null,null,null,null,null,null,null,null,null,null,980]
[1001,null,null,null,null,null,null,null,null,null,null,null,null,null,null,null,null,null,null,null,null,null,981]
[1002,null,null,null,null,null,null,null,null,null,null,null,null,null,null,null,null,null,null,null,null,null,982]
[1003,null,null,null,null,null,null,null,null,null,null,null,null,null,null,null,null,null,null,null,null,null,983]
[1004,null,null,null,null,null,null,null,null,null,null,null,null,null,null,null,null,null,null,null,null,null,984]
[1005,null,null,null,null,null,null,null,null,null,null,null,null,null,null,null,null,null,null,null,null,null,985]
[1006,null,null,null,null,null,null,null,null,null,null,null,null,null,null,null,null,null,null,null,null,null,986]
[1007,null,null,null,null,null,null,null,null,null,null,null,null,null,null,null,null,null,null,null,null,null,987]
[1008,null,null,null,null,null,null,null,null,null,null,null,null,null,null,null,null,null,null,null,null,null,988]
[1009,null,null,null,null,null,null,null,null,null,null,null,null,null,null,null,null,null,null,null,null,null,989]
[1010,null,null,null,null,null,null,null,null,null,null,null,null,null,null,null,null,null,null,null,null,null,990]
[1011,null,null,null,null,null,null,null,null,null,null,null,null,null,null,null,null,null,null,null,null,null,991]
[1012,null,null,null,null,null,null,null,null,null,null,null,null,null,null,null,null,null,null,null,null,null,992]
[1013,null,null,null,null,null,null,null,null,null,null,null,null,null,null,null,null,null,null,null,null,null,993]
[1014,null,null,null,null,null,null,null,null,null,null,null,null,null,null,null,null,null,null,null,null,null,994]
[1015,null,null,null,null,null,null,null,null,null,null,null,null,null,null,null,null,null,null,null,null,null,995]
[1016,null,null,null,null,null,null,null,null,null,null,null,null,null,null,null,null,null,null,null,null,null,996]
[1017,null,null,null,null,null,null,null,null,null,null,null,null,null,null,null,null,null,null,null,null,null,997]
[1018,null,null,null,null,null,null,null,null,null,null,null,null,null,null,null,null,null,null,null,null,null,998]
[1019,null,null,null,null,null,null,null,null,null,null,null,null,null,null,null,null,null,null,null,null,null,999]
[1020,null,null,null,null,null,null,null,null,null,null,null,null,null,null,null,null,null,null,null,null,null,1000]
[1021,null,null,null,null,null,null,null,null,null,null,null,null,null,null,null,null,null,null,null,null,null,1001]
[1022,null,null,null,null,null,null,null,null,null,null,null,null,null,null,null,null,null,null,null,null,null,1002]
[1023,null,null,null,null,null,null,null,null,null,null,null,null,null,null,null,null,null,null,null,null,null,1003]
[1024,null,null,null,null,null,null,null,null,null,null,null,null,null,null,null,null,null,null,null,null,null,1004]
[1048,null,null,null,null,null,null,null,null,null,null,null,null,null,null,null,null,null,null,null,null,null,1005]
[1049,null,null,null,null,null,null,null,null,null,null,null,null,null,null,null,null,null,null,null,null,null,1006]
[1050,null,null,null,null,null,null,null,null,null,null,null,null,null,null,null,null,null,null,null,null,null,1007]
[1051,null,null,null,null,null,null,null,null,null,null,null,null,null,null,null,null,null,null,null,null,null,1008]
[1052,null,null,null,null,null,null,null,null,null,null,null,null,null,null,null,null,null,null,null,null,null,1009]
[1053,null,null,null,null,null,null,null,null,null,null,null,null,null,null,null,null,null,null,null,null,null,1010]
[1054,null,null,null,null,null,null,null,null,null,null,null,null,null,null,null,null,null,null,null,null,null,1011]
[1055,null,null,null,null,null,null,null,null,null,null,null,null,null,null,null,null,null,null,null,null,null,1012]
[1056,null,null,null,null,null,null,null,null,null,null,null,null,null,null,null,null,null,null,null,null,null,1013]
[1057,null,null,null,null,null,null,null,null,null,null,null,null,null,null,null,null,null,null,null,null,null,1014]
[1058,null,null,null,null,null,null,null,null,null,null,null,null,null,null,null,null,null,null,null,null,null,1015]
[1059,null,null,null,null,null,null,null,null,null,null,null,null,null,null,null,null,null,null,null,null,null,1016]
[1060,null,null,null,null,null,null,null,null,null,null,null,null,null,null,null,null,null,null,null,null,null,1017]
[1061,null,null,null,null,null,null,null,null,null,null,null,null,null,null,null,null,null,null,null,null,null,1018]
[1062,null,null,null,null,null,null,null,null,null,null,null,null,null,null,null,null,null,null,null,null,null,1019]
[1063,null,null,null,null,null,null,null,null,null,null,null,null,null,null,null,null,null,null,null,null,null,1020]
[1064,null,null,null,null,null,null,null,null,null,null,null,null,null,null,null,null,null,null,null,null,null,1021]
[1065,null,null,null,null,null,null,null,null,null,null,null,null,null,null,null,null,null,null,null,null,null,1022]
[1066,null,null,null,null,null,null,null,null,null,null,null,null,null,null,null,null,null,null,null,null,null,1023]
[1067,null,null,null,null,null,null,null,null,null,null,null,null,null,null,null,null,null,null,null,null,null,1024]
[1068,null,null,null,null,null,null,null,null,null,null,null,null,null,null,null,null,null,null,null,null,null,1025]
[1069,null,null,null,null,null,null,null,null,null,null,null,null,null,null,null,null,null,null,null,null,null,1026]
[1070,null,null,null,null,null,null,null,null,null,null,null,null,null,null,null,null,null,null,null,null,null,1027]
[1071,null,null,null,null,null,null,null,null,null,null,null,null,null,null,null,null,null,null,null,null,null,1028]
[1072,null,null,null,null,null,null,null,null,null,null,null,null,null,null,null,null,null,null,null,null,null,1029]
[1073,null,null,null,null,null,null,null,null,null,null,null,null,null,null,null,null,null,null,null,null,null,1030]
[1074,null,null,null,null,null,null,null,null,null,null,null,null,null,null,null,null,null,null,null,null,null,1031]
[1075,null,null,null,null,null,null,null,null,null,null,null,null,null,null,null,null,null,null,null,null,null,1032]
[1076,null,null,null,null,null,null,null,null,null,null,null,null,null,null,null,null,null,null,null,null,null,1033]
[1077,null,null,null,null,null,null,null,null,null,null,null,null,null,null,null,null,null,null,null,null,null,1034]
[1078,null,null,null,null,null,null,null,null,null,null,null,null,null,null,null,null,null,null,null,null,null,1035]
[1079,null,null,null,null,null,null,null,null,null,null,null,null,null,null,null,null,null,null,null,null,null,1036]
[1080,null,null,null,null,null,null,null,null,null,null,null,null,null,null,null,null,null,null,null,null,null,1037]
[1081,null,null,null,null,null,null,null,null,null,null,null,null,null,null,null,null,null,null,null,null,null,1038]
[1082,null,null,null,null,null,null,null,null,null,null,null,null,null,null,null,null,null,null,null,null,null,1039]
[1083,null,null,null,null,null,null,null,null,null,null,null,null,null,null,null,null,null,null,null,null,null,1040]
[1084]
[1085]
[1086]
[1087]
[1088]
[1089]
[1090]
[1091]
[1092]
[1093]
[1094]
[1095]
[1096]
[1097]
[1098]
[1099]
[1100]
[1101]
[1102]
[1103]
[1104]
[1105]
[1106]
[1107]
[1108]
[1109]
[1110]
[1111]
[1112]
[1113]
[1114]
[1115]
[1116]
[1117]
[1118]
[1119]
[1120]
[1121]
[1122]
[1123]
[1124]
[1125]
[1126]
[1127]
[1128]
[1129]
[1130]
[1131]
[1132]
[1133]
[1134]
[1135]
[1136]
[1137]
[1138]
[1139]
[1140]
[1141]
[1142]
[1143]
[1144]
[1145]
[1146]
[1147]
[1148]
[1149]
[1150]
[1151]
[1152]
[1153]
[1154]
[1155]
[1156]
[1157]
[1158]
[1159]
[1160]
[1161]
[1162]
[1163]
[1164]
[1165]
[1166]
[1167]
[1168]
[1169]
[1170]
[1171]
[1172]
[1173]
[1174]
[1175]
[1177]
[1178]
[1179]
[1180]
[1181]
[1182]
[1183]
[1184]
[1185]
[1186]
[1187]
[1188]
[1189]
[1190]
[1191]
[1192]
[1193]
[1194]
[1195]
[1196]
[1197]
[1198]
[1199]
[1200]
[1201]
[1202]
[1203]
[1204]
[1205]
[1206]
[1207]
[1208]
[1209]
[1210]
[1211]
[1212]
[1213]
[1214]
[1215]
[1216]
[1217]
[1218]
[1219]
[1220]
[1221]
[1222]
[1223]
[1224]
[1225]
[1226]
[1227]
[1228]
[1229]
[1230]
[1231]
[1232]
[1233]
[1234]
[1235]
[1236]
[1237]
[1238]
[1239]
[1240]
[1241]
[1242]
[1243]
[1244]
[1245]
[1246]
[1247]
[1248]
[1249]
[1250]
[1251]
[1252]
[1253]
[1254]
[1255]
[1256]
[1257]
[1258]
[1259]
[1260]
[1261]
[1262]
[1263]
[1264]
[1265]
[1266]
[1267]
[1268]
[1269]
[1270]
[1271]
[1272]
[1273]
[1274]
[1275]
[1276]
[1277]
[1278]
[1279]
[1280]
[1281]
[1282]
[1283]
[1284]
[1285]
[1286]
[1287]
[1288]
[1289]
[1290]
[1291]
[1292]
[1293]
[1294]
[1295]
[1296]
[1297]
[1298]
[1299]
[1300]
[1301]
[1302]
[1303]
[1304]
[1305]
[1306]
[1307]
[1308]
[1309]
[1310]
[1311]
[1312]
[1313]
[1314]
[1315]
[1316]
[1317]
[1318]
[1319]
[1320]
[1321]
[1322]
[1323]
[1324]
[1325]
[1326]
[1327]
[1328]
[1329]
[1330]
[1331]
[1332]
[1333]
[1334]
[1335]
[1336]
[1337]
[1338]
[1339]
[1340]
[1341]
[1342]
[1343]
[1344]
[1345]
[1346]
[1347]
[1348]
[1349]
[1350]
[1351]
[1352]
[1353]
[1354]
[1355]
[1356]
[1357]
[1358]
[1359]
[1360]
[1361]
[1362]
[1363]
[1364]
[1365]
[1366]
[1367]
[1368]
[1369]
[1370]
[1371]
[1372]
[1373]
[1374]
[1375]
[1376]
[1377]
[1378]
[1379]
[1380]
[1381]
[1382]
[1383]
[1384]
[1385]
[1386]
[1387]
[1388]
[1389]
[1390]
[1391]
[1392]
[1393]
[1394]
[1395]
[1396]
[1397]
[1398]
[1399]
[1400]
[1401]
[1402]
[1403]
[1404]
[1405]
[1406]
[1407]
[1408]
[1409]
[1410]
[1411]
[1412]
[1413]
[1414]
[1415]
[1416]
[1417]
[1418]
[1419]
[1420]
[1421]
[1422]
[1423]
[1424]
[1425]
[1426]
[1427]
[1428]
[1429]
[1430]
[1431]
[1432]
[1433]
[1434]
[1435]
[1436]
[1437]
[1438]
[1439]
[1440]
[1441]
[1442]
[1443]
[1444]
[1445]
[1446]
[1447]
[1448]
[1449]
[1450]
[1451]
[1452]
[1453]
[1454]
[1455]
[1456]
[1457]
[1458]
[1459]
[1460]
[1461]
[1462]
[1463]
[1464]
[1465]
[1466]
[1467]
[1468]
[1469]
[1470]
[1471]
[1472]
[1473]
[1474]
[1475]
[1476]
[1477]
[1478]
[1479]
[1480]
[1481]
[1482]
[1483]
[1484]
[1485]
[1486]
[1487]
[1488]
[1489]
[1490]
[1491]
[1492]
[1493]
[1494]
[1495]
[1496]
[1497]
[1498]
[1499]
[1500]
[1501]
[1502]
[1503]
[1504]
[1505]
[1506]
[1507]
[1508]
[1509]
[1510]
[1511]
[1512]
[1513]
[1514]
[1515]
[1516]
[1517]
[1518]
[1519]
[1520]
[1521]
[1522]
[1523]
[1524]
[1525]
[1526]
[1527]
[1528]
[1529]
[1530]
[1531]
[1532]
[1533]
[1534]
[1535]
[1536]
[1537]
[1538]
[1539]
[1540]
[1541]
[1542]
[1543]
[1544]
[1545]
[1546]
[1547]
[1548]
[1549]
[1550]
[1551]
[1552]
[1553]
[1554]
[1555]
[1556]
[1557]
[1558]
[1559]
[1560]
[1561]
[1562]
[1563]
[1564]
[1565]
[1566]
[1567]
[1568]
[1569]
[1570]
[1571]
[1572]
[1573]
[1574]
[1575]
[1576]
[1577]
[1578]
[1579]
[1580]
[1581]
[1582]
[1583]
[1584]
[1585]
[1586]
[1587]
[1588]
[1589]
[1590]
[1591]
[1592]
[1593]
[1594]
[1595]
[1596]
[1597]
[1598]
[1599]
[1600]
[1601]
[1602]
[1603]
[1604]
[1605]
[1606]
[1607]
[1608]
[1609]
[1610]
[1611]
[1612]
[1613]
[1614]
[1615]
[1616]
[1617]
[1618]
[1619]
[1620]
[1621]
[1622]
[1623]
[1624]
[1625]
[1626]
[1627]
[1628]
[1629]
[1630]
[1631]
[1632]
[1633]
[1634]
[1635]
[1636]
[1637]
[1638]
[1639]
[1640]
[1641]
[1642]
[1643]
[1644]
[1645]
[1646]
[1647]
[1648]
[1649]
[1650]
[1651]
[1652]
[1653]
[1654]
[1655]
[1656]
[1657]
[1658]
[1659]
[1660]
[1661]
[1662]
[1663]
[1664]
[1665]
[1666]
[1667]
[1668]
[1669]
[1670]
[1671]
[1672]
[1673]
[1674]
[1675]
[1676]
[1677]
[1678]
[1679]
[1680]
[1681]
[1682]
[1683]
[1684]
[1685]
[1686]
[1687]
[1688]
[1689]
[1690]
[1691]
[1692]
[1693]
[1694]
[1695]
[1696]
[1697]
[1698]
[1699]
[1700]
[1701]
[1702]
[1703]
[1704]
[1705]
[1706]
[1707]
[1708]
[1709]
[1710]
[1711]
[1712]
[1713]
[1714]
[1715]
[1716]
[1717]
[1718]
[1719]
[1720]
[1721]
[1722]
[1723]
[1724]
[1725]
[1726]
[1727]
[1728]
[1729]
[1730]
[1731]
[1732]
[1733]
[1734]
[1735]
[1736]
[1737]
[1738]
[1739]
[1740]
[1741]
[1742]
[1743]
[1744]
[1745]
[1746]
[1747]
[1748]
[1749]
[1750]
[1751]
[1752]
[1753]
[1754]
[1755]
[1756]
[1757]
[1758]
[1759]
[1760]
[1761]
[1762]
[1763]
[1764]
[1765]
[1766]
[1767]
[1768]
[1769]
[1770]
[1771]
[1772]
[1773]
[1774]
[1775]
[1776]
[1777]
[1778]
[1779]
[1780]
[1781]
[1782]
[1783]
[1784]
[1785]
[1786]
[1787]
[1788]
[1789]
[1790]
[1791]
[1792]
[1793]
[1794]
[1795]
[1796]
[1797]
[1798]
[1799]
[1800]
[1801]
[1802]
[1803]
[1804]
[1805]
[1806]
[1807]
[1808]
[1809]
[1810]
[1811]
[1812]
[1813]
[1814]
[1815]
[1816]
[1817]
[1818]
[1819]
[1820]
[1821]
[1822]
[1823]
[1824]
[1825]
[1826]
[1827]
[1828]
[1829]
[1830]
[1831]
[1832]
[1833]
[1834]
[1835]
[1836]
[1837]
[1838]
[1839]
[1840]
[1841]
[1842]
[1843]
[1844]
[1845]
[1846]
[1847]
[1848]
[1849]
[1850]
[1851]
[1852]
[1853]
[1854]
[1855]
[1856]
[1857]
[1858]
[1859]
[1860]
[1861]
[1862]
[1863]
[1864]
[1865]
[1866]
[1867]
[1868]
[1869]
[1870]
[1871]
[1872]
[1873]
[1874]
[1875]
[1876]
[1877]
[1878]
[1879]
[1880]
[1881]
[1882]
[1883]
[1884]
[1885]
[1886]
[1887]
[1888]
[1889]
[1890]
[1891]
[1892]
[1893]
[1894]
[1895]
[1896]
[1897]
[1898]
[1899]
[1900]
[1901]
[1902]
[1903]
[1904]
[1905]
[1906]
[1907]
[1908]
[1909]
[1910]
[1911]
[1912]
[1913]
[1914]

{"sheet":"Hoja1","index":1,"n_rows":18,"n_cols":25,"rows_kept":18,"cut":false,"hidden":false,"merged":[[17,5,17,10],[0,5,0,22],[12,5,12,22],[13,5,13,19],[6,11,6,15],[8,5,8,22],[7,20,7,21],[9,10,9,15],[6,5,6,10],[7,5,7,8],[9,17,9,21]]}
[null,null,null,null,null,{"$f":"F13","v":"¿ Qué significa la palabra francesa \" châpeau \" ?"},null,null,null,null,null,null,null,null,null,null,null,null,null,null,null,null,null,1]
[null,null,null,null,null,{"$f":"VLOOKUP($X$1,Hoja2!$A$1:$X$841,4,FALSE)","v":"s"},{"$f":"VLOOKUP($X$1,Hoja2!$A$1:$X$841,5,FALSE)","v":"o"},{"$f":"VLOOKUP($X$1,Hoja2!$A$1:$X$841,6,FALSE)","v":"m"},{"$f":"VLOOKUP($X$1,Hoja2!$A$1:$X$841,7,FALSE)","v":"b"},{"$f":"VLOOKUP($X$1,Hoja2!$A$1:$X$841,8,FALSE)","v":"r"},{"$f":"VLOOKUP($X$1,Hoja2!$A$1:$X$841,9,FALSE)","v":"e"},{"$f":"VLOOKUP($X$1,Hoja2!$A$1:$X$841,10,FALSE)","v":"r"},{"$f":"VLOOKUP($X$1,Hoja2!$A$1:$X$841,11,FALSE)","v":"o"},{"$f":"VLOOKUP($X$1,Hoja2!$A$1:$X$841,12,FALSE)","v":0},{"$f":"VLOOKUP($X$1,Hoja2!$A$1:$X$841,13,FALSE)","v":0},{"$f":"VLOOKUP($X$1,Hoja2!$A$1:$X$841,14,FALSE)","v":0},{"$f":"VLOOKUP($X$1,Hoja2!$A$1:$X$841,15,FALSE)","v":0},{"$f":"VLOOKUP($X$1,Hoja2!$A$1:$X$841,16,FALSE)","v":0},{"$f":"VLOOKUP($X$1,Hoja2!$A$1:$X$841,17,FALSE)","v":0},{"$f":"VLOOKUP($X$1,Hoja2!$A$1:$X$841,18,FALSE)","v":0},{"$f":"VLOOKUP($X$1,Hoja2!$A$1:$X$841,19,FALSE)","v":0},{"$f":"VLOOKUP($X$1,Hoja2!$A$1:$X$841,20,FALSE)","v":0},{"$f":"VLOOKUP($X$1,Hoja2!$A$1:$X$841,21,FALSE)","v":0},1]
[null,null,null,null,null,{"$f":"F2","v":"s"},{"$f":"G2","v":"o"},"m","b","r","e","r","o",0,0,0,0,0,0,0,0,0,0]
[null,null,null,null,null,{"$f":"IF($K$8=F2,F2,IF($L$8=F2,F2,IF($M$8=F2,F2,IF($N$8=F2,F2,IF($O$8=F2,F2,IF($P$8=F2,F2,\"\"))))))","v":""},{"$f":"IF($K$8=G2,G2,IF($L$8=G2,G2,IF($M$8=G2,G2,IF($N$8=G2,G2,IF($O$8=G2,G2,IF($P$8=G2,G2,\"\"))))))","v":""},"m","b","","","","","","","","","","","","","","",1,1]
[null,null,null,null,null,null,null,null,null,null,null,null,null,null,null,null,null,null,null,null,null,null,null,null,{"$f":"RANDBETWEEN(1,21)","v":18}]
[null,null,null,null,null,{"$f":"F3","v":"s"},{"$f":"G3","v":"o"},"m","b","r","e","r","o",0,0,0,0,0,0,0,0,0,0]
[null,null,null,null,null,null,null,null,null,null,null,"CONSONANTES",null,null,null,null,null,null,null,null,null,null,null,"a"]
[null,null,null,null,null,"celda de apunte si la sabes            no acentos, artículos, etc.",null,null,null,"vocal número","a",{"$f":"G16","v":"B"},{"$f":"H16","v":"M"},{"$f":"I16","v":"D"},{"$f":"J16","v":"Q"},{"$f":"K16","v":"M"},null,null,null,null,"inicio"]
[null,null,null,null,null,null,null,null,null,null,null,null,null,null,null,null,null,null,null,null,null,null,null,"i"]
[null,null,null,null,null,null,null,null,null,null,{"$f":"VLOOKUP($X$1,Hoja2!A1:C484,3,FALSE)","v":"sombrero"},null,null,null,null,null,{"$f":"VLOOKUP(F1,Hoja2!B1:W1984,22,FALSE)","v":1},{"$f":"VLOOKUP(Q10,Hoja2!A1:V1985,22,FALSE)","v":0}]
[]
[]
[null,null,null,null,null,{"$f":"VLOOKUP(X1,Hoja2!A1:C463,2,FALSE)","v":"¿ Qué significa la palabra francesa \" châpeau \" ?"},null,null,null,null,null,null,null,null,null,null,null,null,null,null,null,null,null,"a",0]
[null,null,null,null,null,{"$f":"VLOOKUP(X1,Hoja2!A1:C463,3,FALSE)","v":"sombrero"}]
[null,null,null,null,null,null,1,10,3,13,10]
[null,null,null,null,null,null,{"$f":"VLOOKUP(G15,Hoja3!A1:B21,2,FALSE)","v":"B"},{"$f":"VLOOKUP(H15,Hoja3!A1:B21,2,FALSE)","v":"M"},{"$f":"VLOOKUP(I15,Hoja3!A1:B21,2,FALSE)","v":"D"},{"$f":"VLOOKUP(J15,Hoja3!A1:B21,2,FALSE)","v":"Q"},{"$f":"VLOOKUP(K15,Hoja3!A1:B21,2,)","v":"M"}]
[]
[null,null,null,null,null,{"$f":"VLOOKUP(X1,Hoja2!A1:V1923,22,FALSE)","v":0},null,null,null,null,null,"RESPUESTA"]

{"sheet":"Hoja3","index":2,"n_rows":21,"n_cols":2,"rows_kept":21,"cut":false,"hidden":false,"merged":[]}
[1,"B"]
[2,"C"]
[3,"D"]
[4,"F"]
[5,"G"]
[6,"H"]
[7,"J"]
[8,"K"]
[9,"L"]
[10,"M"]
[11,"N"]
[12,"P"]
[13,"Q"]
[14,"R"]
[15,"S"]
[16,"T"]
[17,"V"]
[18,"W"]
[19,"X"]
[20,"Y"]
[21,"Z"]